Workbook

Sheet Cover
C2: Powercor
C3: Regulatory proposal 2026-31
C5: =REPLACE(LEFT(_xlfn.TEXTAFTER(CELL("filename")," - ",1),FIND("Jan2025",_xlfn.TEXTAFTER(CELL("filename")," - "),1)-4),1,1,UPPER(LEFT(LEFT(_xlfn.TEXTAFTER(CELL("filename")," - ",1),FIND("Jan2025",_xlfn.TEXTAFTER(CELL("filename")," - "),1)-4),1))) -> Metering business case
C6: Model number: | D6: =LEFT(_xlfn.TEXTAFTER(CELL("filename")," MOD "),FIND(" - ",_xlfn.TEXTAFTER(CELL("filename")," MOD "),1)-1) -> 12.04
C8: 2025-01-31

Sheet Summary
B2: Proactive meter replacement - Cost model
B5: Options summary - NPV
B7: Description | C7: NPV | D7: NPV net
B8: ='Option 3'!B2 -> Option 3 - Proactive deplayed | C8: ='Option 3'!D50 -> 422331353.2 | D8: =$C$10-C8 -> 17786851.1
B9: ='Option 2'!B2 -> Option 2 - Proactive | C9: ='Option 2'!D50 -> 402402034.4 | D9: =$C$10-C9 -> 37716169.89
B10: ='Option 1'!B2 -> Option 1 - Reactive | C10: ='Option 1'!D35 -> 440118204.3 | D10: -
B14: WACC
B15: 0.0364 | C15: 0.0364
B19: Waterfall - NPV
C21: Option 2 | D21: Option 3
B22: Reactive failures - Labour | C22: ='Option 1'!D46 -> 205228465.1 | D22: =C22 -> 205228465.1
B23: Reactive failures - Materials | C23: ='Option 1'!D47 -> 172925761.8 | D23: =C23 -> 172925761.8
B24: Reactive faults - Labour | C24: ='Option 1'!D48 -> 42750003.88 | D24: 42750003.88
B25: Reactive Faults - Materials | C25: ='Option 1'!D49 -> 19213973.53 | D25: 19213973.53
B26: Proactive - Labour | C26: =-1*'Option 2'!D64 -> -75608712.98 | D26: =-1*'Option 3'!D66 -> -44131534.39
B27: Proactive - Materials | C27: =-1*'Option 2'!D65 -> -168035920.7 | D27: =-1*'Option 3'!D67 -> -98080580.38
B28: Residual failures - Labour | C28: =-1*'Option 2'!D66 -> -78419947.03 | D28: =-1*'Option 3'!D68 -> -138367555.9
B29: Residual failures - Materials | C29: =-1*'Option 2'!D67 -> -57602006.29 | D29: =-1*'Option 3'!D69 -> -101636193.6
B30: Residual faults - Labour | C30: =-1*'Option 2'!D68 -> -16335224.44 | D30: =-1*'Option 3'!D70 -> -28822578.53
B31: Residual Faults - Materials | C31: =-1*'Option 2'!D69 -> -6400222.922 | D31: =-1*'Option 3'!D71 -> -11292910.4
B32: Total | C32: =SUM(C22:C31) -> 37716169.89 | D32: =SUM(D22:D31) -> 17786851.1

Sheet Result tables
B2: NPV Results
B5: Powercor
B7: option | C7: gross npv | D7: net npv* | E7: bcr*
B8: Option1 - Base Case | C8: 440118204.3 | D8: N/A | E8: N/A
B9: Option 2 | C9: 402402034.4 | D9: =C8-C9 -> 37716169.89 | E9: =C8/C9 -> 1.093727583
B10: Option 3 | C10: 422331353.2 | D10: =C8-C10 -> 17786851.1 | E10: =C8/C10 -> 1.042115867
C13: Reactive | D13: Proactive | E13: Move to 2031 | F13: Net
B14: Sensitivity analysis | C14: Base Case | D14: Option 2 | E14: Option 3
B15: Adopting alternative failure rate profile option 1 | C15: 546451608.7 | D15: 473903121.9 | E15: 517829275.9 | F15: =C15-D15 -> 72548486.74
B16: Adopting alternative failure rate profile option 2 | C16: 296190135 | D16: 353939630.7 | E16: 342551115.2 | F16: -57749495.68
B17: +10% change in reactive replacement installation costs | C17: 464916051.2 | D17: 412094290 | E17: 439394177.7 | F17: 52821761.24
B18: -10% change in reactive replacement installation costs | C18: 415320357.4 | D18: 392716442.9 | E18: 405706551 | F18: 22603914.53
B19: "+10% change in tech capital costs" | C19: 459332177.8 | D19: 425609514.6 | E19: 443666437.2 | F19: 33722663.22
B20: "-10% change in tech capital costs" | C20: 420904230.8 | D20: 379201218.2 | E20: 401434291.5 | F20: 41703012.55
B21: 6% WACC | C21: 361619372.1 | D21: 354817136.7 | E21: 355714038.4 | F21: 6802235.319

Sheet Option 3
B2: Option 3 - Proactive deplayed
B4: Expenditure / benefits profile
D6: 1 | E6: 2 | F6: 3 | G6: 4 | H6: 5 | I6: 6 | J6: 7 | K6: 8 | L6: 9 | M6: 10 | N6: 11 | O6: 12 | P6: 13 | Q6: 14 | R6: 15
D7: 2026-27 | E7: 2027-28 | F7: 2028-29 | G7: 2029-30 | H7: 2030-31 | I7: 2031-32 | J7: 2032-33 | K7: 2033-34 | L7: 2034-35 | M7: 2035-36 | N7: 2036-37 | O7: 2037-38 | P7: 2038-39 | Q7: 2039-40 | R7: 2040-41
B8: Pro-active Labour Costs | C8: AMI 1Ph 1e | D8: 0 | E8: 0 | F8: 0 | G8: 0 | H8: 0 | I8: 5373721.253 | J8: 5862228.2 | K8: 5862228.2 | L8: 5862228.2 | M8: 5618047.141 | N8: 2686860.626 | O8: 0 | P8: 0 | Q8: 0 | R8: 0
C9: AMI 1Ph 1e + c | D9: 0 | E9: 0 | F9: 0 | G9: 0 | H9: 0 | I9: 533403.821 | J9: 581921.4099 | K9: 581921.4099 | L9: 581921.4099 | M9: 557590.2011 | N9: 266774.3248 | O9: 0 | P9: 0 | Q9: 0 | R9: 0
C10: AMI 1Ph 2e + C | D10: 0 | E10: 0 | F10: 0 | G10: 0 | H10: 0 | I10: 1892185.968 | J10: 2064242.373 | K10: 2064242.373 | L10: 2064242.373 | M10: 1978214.171 | N10: 946165.3984 | O10: 0 | P10: 0 | Q10: 0 | R10: 0
C11: AMI 3Ph | D11: 0 | E11: 0 | F11: 0 | G11: 0 | H11: 0 | I11: 1819038.91 | J11: 1984388.746 | K11: 1984388.746 | L11: 1984388.746 | M11: 1901809.185 | N11: 909519.4548 | O11: 0 | P11: 0 | Q11: 0 | R11: 0
C12: AMI 3Ph + C | D12: 0 | E12: 0 | F12: 0 | G12: 0 | H12: 0 | I12: 274057.3404 | J12: 298850.2801 | K12: 298850.2801 | L12: 298850.2801 | M12: 286453.8103 | N12: 136933.3128 | O12: 0 | P12: 0 | Q12: 0 | R12: 0
C13: AMI 3Ph CT | D13: 0 | E13: 0 | F13: 0 | G13: 0 | H13: 0 | I13: 287644.1151 | J13: 313520.0501 | K13: 313520.0501 | L13: 313520.0501 | M13: 300281.1997 | N13: 143822.0576 | O13: 0 | P13: 0 | Q13: 0 | R13: 0
D14: =SUM(D8:D13) -> 0 | E14: =SUM(E8:E13) -> 0 | F14: 0 | G14: 0 | H14: 0 | I14: 10180051.41 | J14: 11105151.06 | K14: 11105151.06 | L14: 11105151.06 | M14: 10642395.71 | N14: 5090075.175 | O14: 0 | P14: 0 | Q14: 0 | R14: 0
B15: Pro-active Material Costs | C15: AMI 1Ph 1e | D15: 0 | E15: 0 | F15: 0 | G15: 0 | H15: 0 | I15: 10981443.34 | J15: 11979729.46 | K15: 11979729.46 | L15: 11979729.46 | M15: 11480734.38 | N15: 5490721.669 | O15: 0 | P15: 0 | Q15: 0 | R15: 0
C16: AMI 1Ph 1e + c | D16: 0 | E16: 0 | F16: 0 | G16: 0 | H16: 0 | I16: 1256407.877 | J16: 1370688.8 | K16: 1370688.8 | L16: 1370688.8 | M16: 1313377.77 | N16: 628374.507 | O16: 0 | P16: 0 | Q16: 0 | R16: 0
C17: AMI 1Ph 2e + C | D17: 0 | E17: 0 | F17: 0 | G17: 0 | H17: 0 | I17: 5071903.423 | J17: 5533091.426 | K17: 5533091.426 | L17: 5533091.426 | M17: 5302497.425 | N17: 2536145.814 | O17: 0 | P17: 0 | Q17: 0 | R17: 0
C18: AMI 3Ph | D18: 0 | E18: 0 | F18: 0 | G18: 0 | H18: 0 | I18: 4336716.734 | J18: 4730922.376 | K18: 4730922.376 | L18: 4730922.376 | M18: 4534046.894 | N18: 2168358.367 | O18: 0 | P18: 0 | Q18: 0 | R18: 0
C19: AMI 3Ph + C | D19: 0 | E19: 0 | F19: 0 | G19: 0 | H19: 0 | I19: 684630.1151 | J19: 746566.0336 | K19: 746566.0336 | L19: 746566.0336 | M19: 715598.0744 | N19: 342076.8425 | O19: 0 | P19: 0 | Q19: 0 | R19: 0
C20: AMI 3Ph CT | D20: 0 | E20: 0 | F20: 0 | G20: 0 | H20: 0 | I20: 293408.0069 | J20: 319802.451 | K20: 319802.451 | L20: 319802.451 | M20: 306298.3168 | N20: 146704.0034 | O20: 0 | P20: 0 | Q20: 0 | R20: 0
D21: =SUM(D15:D20) -> 0 | E21: =SUM(E15:E20) -> 0 | F21: 0 | G21: 0 | H21: 0 | I21: 22624509.49 | J21: 24680800.55 | K21: 24680800.55 | L21: 24680800.55 | M21: 23652552.86 | N21: 11312381.2 | O21: 0 | P21: 0 | Q21: 0 | R21: 0
D23: Year
D24: 2026-27 | E24: 2027-28 | F24: 2028-29 | G24: 2029-30 | H24: 2030-31 | I24: 2031-32 | J24: 2032-33 | K24: 2033-34 | L24: 2034-35 | M24: 2035-36 | N24: 2036-37 | O24: 2037-38 | P24: 2038-39 | Q24: 2039-40 | R24: 2040-41
B25: Pro-active failures Labour Costs | C25: AMI 1Ph 1e | D25: 2951338.573 | E25: 4618650.019 | F25: 6581933.91 | G25: 8747958.927 | H25: 10894252.45 | I25: 12109219.34 | J25: 12071236.21 | K25: 11313546.75 | L25: 9952566.782 | M25: 8054890.116 | N25: 6708708.774 | O25: 6571574.874 | P25: 6771849.563 | Q25: 6804406.532 | R25: 6675658.518
C26: AMI 1Ph 1e + c | D26: 293012.7215 | E26: 458264.0038 | F26: 653112.5307 | G26: 868185.8414 | H26: 1081286.002 | I26: 1202141.418 | J26: 1198195.119 | K26: 1123215.432 | L26: 988054.682 | M26: 799618.8914 | N26: 665938.0033 | O26: 652125.9558 | P26: 672350.7397 | Q26: 675310.4641 | R26: 662484.9915
C27: AMI 1Ph 2e + C | D27: 1039356.573 | E27: 1626368.59 | F27: 2317464.252 | G27: 3080579.875 | H27: 3836296.187 | I27: 4263976.371 | J27: 4250657.611 | K27: 3983789.122 | L27: 3504313.76 | M27: 2836402.607 | N27: 2362353.406 | O27: 2314011.24 | P27: 2384551.339 | Q27: 2395896.95 | R27: 2350514.508
C28: AMI 3Ph | D28: 926444.8844 | E28: 1449904.315 | F28: 2066128.708 | G28: 2746204.31 | H28: 3419653.842 | I28: 3800953.98 | J28: 3788906.582 | K28: 3551572.847 | L28: 3123890.228 | M28: 2528146.411 | N28: 2105885.121 | O28: 2062514.489 | P28: 2125763.327 | Q28: 2136003.615 | R28: 2095644.833
C29: AMI 3Ph + C | D29: 139749.8135 | E29: 218660.2686 | F29: 311425.231 | G29: 413828.1116 | H29: 515026.2524 | I29: 572251.3916 | J29: 570444.2819 | K29: 534904.4586 | L29: 470450.8808 | M29: 380697.7679 | N29: 317448.9298 | O29: 310822.8611 | P29: 320460.7793 | Q29: 321665.519 | R29: 315641.8202
C30: AMI 3Ph CT | D30: 51484.41856 | E30: 80235.45749 | F30: 115004.1557 | G30: 152447.3692 | H30: 189890.5827 | I30: 211286.7047 | J30: 210618.0759 | K30: 197245.4997 | L30: 173843.4912 | M30: 140412.0506 | N30: 117010.0422 | O30: 114335.5269 | P30: 118347.2998 | Q30: 118347.2998 | R30: 116341.4134
D31: =SUM(D25:D30) -> 5401386.984 | E31: =SUM(E25:E30) -> 8452082.654 | F31: 12045068.79 | G31: 16009204.43 | H31: 19936405.31 | I31: 22159829.2 | J31: 22090057.88 | K31: 20704274.11 | L31: 18213119.82 | M31: 14740167.84 | N31: 12277344.28 | O31: 12025384.95 | P31: 12393323.05 | Q31: 12451630.38 | R31: 12216286.08
B32: Pro-active failures Material Costs | C32: AMI 1Ph 1e | D32: 1770751.819 | E32: 2771109.691 | F32: 3949045.884 | G32: 5248623.226 | H32: 6536362.013 | I32: 7265321.019 | J32: 7242531.801 | K32: 6787931.3 | L32: 5971366.99 | M32: 4832793.992 | N32: 4025108.598 | O32: 3942830.642 | P32: 4062991.973 | Q32: 4082525.588 | R32: 4005279.018
C33: AMI 1Ph 1e + c | D33: 202635.4273 | E33: 316916.3501 | F33: 451665.4979 | G33: 600401.2661 | H33: 747772.486 | I33: 831351.0714 | J33: 828621.9747 | K33: 776769.1381 | L33: 683297.5773 | M33: 552983.2116 | N33: 460535.0621 | O33: 450983.2238 | P33: 464969.8442 | Q33: 467016.6667 | R33: 458147.1025
C34: AMI 1Ph 2e + C | D34: 817948.7571 | E34: 1279913.171 | F34: 1823788.923 | G34: 2424342.662 | H34: 3019073.32 | I34: 3355647.393 | J34: 3345165.847 | K34: 3135146.731 | L34: 2757811.092 | M34: 2232180.994 | N34: 1859115.614 | O34: 1821071.485 | P34: 1876584.856 | Q34: 1885513.58 | R34: 1849798.684
C35: AMI 3Ph | D35: 699294.4367 | E35: 1094409.434 | F35: 1559544.81 | G35: 2072876.032 | H35: 2581205.798 | I35: 2869016.837 | J35: 2859923.282 | K35: 2680780.233 | L35: 2357959.004 | M35: 1908282.673 | N35: 1589553.544 | O35: 1556816.743 | P35: 1604557.911 | Q35: 1612287.433 | R35: 1581824.022
C36: AMI 3Ph + C | D36: 110531.7931 | E36: 172944.1418 | F36: 246314.3838 | G36: 327307.5081 | H36: 407347.772 | I36: 452608.6356 | J36: 451179.3452 | K36: 423069.9667 | L36: 372091.9415 | M36: 301103.8502 | N36: 251078.6852 | O36: 245837.9536 | P36: 253460.8359 | Q36: 254413.6962 | R36: 249649.3948
C37: AMI 3Ph CT | D37: 47264.46973 | E37: 73658.91386 | F37: 105577.7765 | G37: 139951.9363 | H37: 174326.0961 | I37: 193968.4732 | J37: 193354.6489 | K37: 181078.1632 | L37: 159594.3134 | M37: 128903.0993 | N37: 107419.2494 | O37: 104963.9523 | P37: 108646.8979 | Q37: 108646.8979 | R37: 106805.4251
D38: =SUM(D32:D37) -> 3648426.703 | E38: =SUM(E32:E37) -> 5708951.702 | F38: 8135937.275 | G38: 10813502.63 | H38: 13466087.48 | I38: 14967913.43 | J38: 14920776.9 | K38: 13984775.53 | L38: 12302120.92 | M38: 9956247.819 | N38: 8292810.752 | O38: 8122504.001 | P38: 8371212.318 | Q38: 8410403.862 | R38: 8251503.647
B45: Capital costs
D47: 2026-27 | E47: 2027-28 | F47: 2028-29 | G47: 2029-30 | H47: 2030-31 | I47: 2031-32 | J47: 2032-33 | K47: 2033-34 | L47: 2034-35 | M47: 2035-36 | N47: 2036-37 | O47: 2037-38 | P47: 2038-39 | Q47: 2039-40 | R47: 2040-41
D48: =D38+D31+D21+D14 -> 9049813.687 | E48: 14161034.36 | F48: 20181006.06 | G48: 26822707.06 | H48: 33402492.8 | I48: 69932303.53 | J48: 72796786.38 | K48: 70475001.25 | L48: 66301192.35 | M48: 58991364.23 | N48: 36972611.41 | O48: 20147888.95 | P48: 20764535.37 | Q48: 20862034.24 | R48: 20467789.73
B50: NPV | D50: =NPV(Summary!$B$15,D48:R48) -> 422331353.2
B52: NPV Breakdown
B56: Proactive - Labour | D56: =D14 -> 0 | E56: =E14 -> 0 | F56: 0 | G56: 0 | H56: 0 | I56: 10180051.41 | J56: 11105151.06 | K56: 11105151.06 | L56: 11105151.06 | M56: 10642395.71 | N56: 5090075.175 | O56: 0 | P56: 0 | Q56: 0 | R56: 0
B57: Proactive - Materials | D57: =D21 -> 0 | E57: =E21 -> 0 | F57: 0 | G57: 0 | H57: 0 | I57: 22624509.49 | J57: 24680800.55 | K57: 24680800.55 | L57: 24680800.55 | M57: 23652552.86 | N57: 11312381.2 | O57: 0 | P57: 0 | Q57: 0 | R57: 0
B58: Proactive failures - Labour | D58: 4470220.196 | E58: 6994994.191 | F58: 9968571.019 | G58: 13249313.41 | H58: 16499488.36 | I58: 18339607.28 | J58: 18281864.11 | K58: 17134981.17 | L58: 15073286.97 | M58: 12199051.13 | N58: 10160803.6 | O58: 9952280.555 | P58: 10256788.33 | Q58: 10305043.83 | R58: 10110271.48
B59: Proactive failures - Materials | D59: 3283584.033 | E59: 5138056.532 | F59: 7322343.548 | G59: 9732152.367 | H59: 12119478.74 | I59: 13471122.09 | J59: 13428699.21 | K59: 12586297.98 | L59: 11071908.83 | M59: 8960623.037 | N59: 7463529.677 | O59: 7310253.601 | P59: 7534091.086 | Q59: 7569363.476 | R59: 7426353.282
B60: Proactive faults - Labour | D60: =D31-D58 -> 931166.7881 | E60: =E31-E58 -> 1457088.463 | F60: 2076497.768 | G60: 2759891.027 | H60: 3436916.954 | I60: 3820221.926 | J60: 3808193.767 | K60: 3569292.938 | L60: 3139832.85 | M60: 2541116.715 | N60: 2116540.672 | O60: 2073104.392 | P60: 2136534.718 | Q60: 2146586.553 | R60: 2106014.605
B61: Proactive Faults - Materials | D61: =D38-D59 -> 364842.6703 | E61: =E38-E59 -> 570895.1702 | F61: 813593.7275 | G61: 1081350.263 | H61: 1346608.748 | I61: 1496791.343 | J61: 1492077.69 | K61: 1398477.553 | L61: 1230212.092 | M61: 995624.7819 | N61: 829281.0752 | O61: 812250.4001 | P61: 837121.2318 | Q61: 841040.3862 | R61: 825150.3647
B63: NPV
B66: Proactive - Labour | D66: =NPV(Summary!$B$15,D56:R56) -> 44131534.39
B67: Proactive - Materials | D67: =NPV(Summary!$B$15,D57:R57) -> 98080580.38
B68: Proactive failures - Labour | D68: =NPV(Summary!$B$15,D58:R58) -> 138367555.9
B69: Proactive failures - Materials | D69: =NPV(Summary!$B$15,D59:R59) -> 101636193.6
B70: Proactive faults - Labour | D70: =NPV(Summary!$B$15,D60:R60) -> 28822578.53
B71: Proactive Faults - Materials | D71: =NPV(Summary!$B$15,D61:R61) -> 11292910.4
B72: Total | D72: =SUM(D66:D71) -> 422331353.2

Sheet Option 2
B2: Option 2 - Proactive
B4: Expenditure / benefits profile
D6: 1 | E6: 2 | F6: 3 | G6: 4 | H6: 5 | I6: 6 | J6: 7 | K6: 8 | L6: 9 | M6: 10 | N6: 11 | O6: 12 | P6: 13 | Q6: 14 | R6: 15
D7: 2026-27 | E7: 2027-28 | F7: 2028-29 | G7: 2029-30 | H7: 2030-31 | I7: 2031-32 | J7: 2032-33 | K7: 2033-34 | L7: 2034-35 | M7: 2035-36 | N7: 2036-37 | O7: 2037-38 | P7: 2038-39 | Q7: 2039-40 | R7: 2040-41
B8: Pro-active Labour Costs | C8: AMI 1Ph 1e | D8: 5373721.253 | E8: 5862228.2 | F8: 5862228.2 | G8: 5862228.2 | H8: 5862228.2 | I8: 5862228.2 | J8: 5862228.2 | K8: 4640888.417 | L8: 1709846.731 | M8: 0 | N8: 0 | O8: 0 | P8: 0 | Q8: 0 | R8: 0
C9: AMI 1Ph 1e + c | D9: 533403.821 | E9: 581921.4099 | F9: 581921.4099 | G9: 581921.4099 | H9: 581921.4099 | I9: 581921.4099 | J9: 581921.4099 | K9: 460699.8519 | L9: 169739.1469 | M9: 0 | N9: 0 | O9: 0 | P9: 0 | Q9: 0 | R9: 0
C10: AMI 1Ph 2e + C | D10: 1892185.968 | E10: 2064242.373 | F10: 2064242.373 | G10: 2064242.373 | H10: 2064242.373 | I10: 2064242.373 | J10: 2064242.373 | K10: 1634246.19 | L10: 602052.5886 | M10: 0 | N10: 0 | O10: 0 | P10: 0 | Q10: 0 | R10: 0
C11: AMI 3Ph | D11: 1819038.91 | E11: 1984388.746 | F11: 1984388.746 | G11: 1984388.746 | H11: 1984388.746 | I11: 1984388.746 | J11: 1984388.746 | K11: 1570918.798 | L11: 578819.783 | M11: 0 | N11: 0 | O11: 0 | P11: 0 | Q11: 0 | R11: 0
C12: AMI 3Ph + C | D12: 274057.3404 | E12: 298850.2801 | F12: 298850.2801 | G12: 298850.2801 | H12: 298850.2801 | I12: 298850.2801 | J12: 298850.2801 | K12: 236677.2161 | L12: 87156.71857 | M12: 0 | N12: 0 | O12: 0 | P12: 0 | Q12: 0 | R12: 0
C13: AMI 3Ph CT | D13: 287042.3492 | E13: 313520.0501 | F13: 313520.0501 | G13: 313520.0501 | H13: 313520.0501 | I13: 313520.0501 | J13: 313520.0501 | K13: 247927.5636 | L13: 91468.42154 | M13: 0 | N13: 0 | O13: 0 | P13: 0 | Q13: 0 | R13: 0
D14: =SUM(D8:D13) -> 10179449.64 | E14: =SUM(E8:E13) -> 11105151.06 | F14: 11105151.06 | G14: 11105151.06 | H14: 11105151.06 | I14: 11105151.06 | J14: =SUM(J8:J13) -> 11105151.06 | K14: 8791358.036 | L14: 3239083.39 | M14: 0 | N14: =SUM(N8:N13) -> 0 | O14: 0 | P14: 0 | Q14: 0 | R14: 0
B15: Pro-active Material Costs | C15: AMI 1Ph 1e | D15: 10981285.65 | E15: 11979557.44 | F15: 11979557.44 | G15: 11979557.44 | H15: 11979557.44 | I15: 11979557.44 | J15: 11979557.44 | K15: 9483729.985 | L15: 3494099.245 | M15: 0 | N15: 0 | O15: 0 | P15: 0 | Q15: 0 | R15: 0
C16: AMI 1Ph 1e + c | D16: 1256389.835 | E16: 1370669.117 | F16: 1370669.117 | G16: 1370669.117 | H16: 1370669.117 | I16: 1370669.117 | J16: 1370669.117 | K16: 1085141.479 | L16: 399806.9202 | M16: 0 | N16: 0 | O16: 0 | P16: 0 | Q16: 0 | R16: 0
C17: AMI 1Ph 2e + C | D17: 5071830.593 | E17: 5533011.974 | F17: 5533011.974 | G17: 5533011.974 | H17: 5533011.974 | I17: 5533011.974 | J17: 5533011.974 | K17: 4380446.721 | L17: 1613746.634 | M17: 0 | N17: 0 | O17: 0 | P17: 0 | Q17: 0 | R17: 0
C18: AMI 3Ph | D18: 4336654.461 | E18: 4730854.442 | F18: 4730854.442 | G18: 4730854.442 | H18: 4730854.442 | I18: 4730854.442 | J18: 4730854.442 | K18: 3745127.154 | L18: 1379927.269 | M18: 0 | N18: 0 | O18: 0 | P18: 0 | Q18: 0 | R18: 0
C19: AMI 3Ph + C | D19: 684620.2841 | E19: 746555.3133 | F19: 746555.3133 | G19: 746555.3133 | H19: 746555.3133 | I19: 746555.3133 | J19: 746555.3133 | K19: 591241.3171 | L19: 217725.4487 | M19: 0 | N19: 0 | O19: 0 | P19: 0 | Q19: 0 | R19: 0
C20: AMI 3Ph CT | D20: 292789.9782 | E20: 319797.8588 | F20: 319797.8588 | G20: 319797.8588 | H20: 319797.8588 | I20: 319797.8588 | J20: 319797.8588 | K20: 252891.9728 | L20: 93299.95113 | M20: 0 | N20: 0 | O20: 0 | P20: 0 | Q20: 0 | R20: 0
D21: =SUM(D15:D20) -> 22623570.8 | E21: =SUM(E15:E20) -> 24680446.15 | F21: 24680446.15 | G21: 24680446.15 | H21: 24680446.15 | I21: 24680446.15 | J21: =SUM(J15:J20) -> 24680446.15 | K21: 19538578.63 | L21: 7198605.468 | M21: 0 | N21: =SUM(N15:N20) -> 0 | O21: 0 | P21: 0 | Q21: 0 | R21: 0
D23: Year
D24: 2026-27 | E24: 2027-28 | F24: 2028-29 | G24: 2029-30 | H24: 2030-31 | I24: 2031-32 | J24: 2032-33 | K24: 2033-34 | L24: 2034-35 | M24: 2035-36 | N24: 2036-37 | O24: 2037-38 | P24: 2038-39 | Q24: 2039-40 | R24: 2040-41
B25: Pro-active failures Labour Costs | C25: AMI 1Ph 1e | D25: 2626755.458 | E25: 3560055.237 | F25: 4400616.983 | G25: 5048796.64 | H25: 5398537.414 | I25: 5387685.091 | J25: 4977269.966 | K25: 4205275.169 | L25: 3856520.97 | M25: 4199849.008 | N25: 4623582.893 | O25: 4962471.343 | P25: 5200235.875 | Q25: 5326517.452 | R25: 5338356.35
C26: AMI 1Ph 1e + c | D26: 260949.0398 | E26: 353193.7855 | F26: 437052.6451 | G26: 501180.0084 | H26: 535710.1271 | I26: 534723.5523 | J26: 494273.9847 | K26: 417321.1488 | L26: 382791.0301 | M26: 416827.8613 | N26: 458757.2912 | O26: 492794.1225 | P26: 515978.6307 | Q26: 528804.1034 | R26: 529790.6782
C27: AMI 1Ph 2e + C | D27: 924913.8935 | E27: 1253443.308 | F27: 1549415.754 | G27: 1777807.825 | H27: 1901129.678 | I27: 1897183.378 | J27: 1752650.167 | K27: 1480848.804 | L27: 1358020.239 | M27: 1478875.655 | N27: 1627848.453 | O27: 1747717.293 | P27: 1831082.865 | Q27: 1875478.732 | R27: 1879918.319
C28: AMI 3Ph | D28: 824644.3737 | E28: 1117396.138 | F28: 1381234.148 | G28: 1584835.17 | H28: 1694466.489 | I28: 1691454.639 | J28: 1562547.484 | K28: 1319792.42 | L28: 1210763.471 | M28: 1318587.68 | N28: 1451109.055 | O28: 1557728.525 | P28: 1632422.391 | Q28: 1672178.803 | R28: 1675793.022
C29: AMI 3Ph + C | D29: 124088.1965 | E29: 168061.1982 | F29: 207817.6106 | G29: 238538.4748 | H29: 255404.8316 | I29: 254802.4617 | J29: 235526.6254 | K29: 198782.0623 | L29: 182518.0754 | M29: 198782.0623 | N29: 218660.2686 | O29: 234924.2555 | P29: 245766.9134 | Q29: 251790.6123 | R29: 252392.9822
C30: AMI 3Ph CT | D30: 46135.38806 | E30: 62182.47956 | F30: 76892.31343 | G30: 88259.00324 | H30: 94276.66255 | I30: 94276.66255 | J30: 86921.74562 | K30: 73549.16937 | L30: 67531.51006 | M30: 73549.16937 | N30: 80904.0863 | O30: 86253.1168 | P30: 90933.51849 | Q30: 92939.40493 | R30: 92939.40493
D31: =SUM(D25:D30) -> 4807486.349 | E31: =SUM(E25:E30) -> 6514332.147 | F31: 8053029.455 | G31: 9239417.121 | H31: 9879525.201 | I31: 9860125.785 | J31: 9109189.972 | K31: 7695568.774 | L31: 7058145.296 | M31: 7686471.436 | N31: 8460862.046 | O31: 9081888.656 | P31: 9516420.194 | Q31: =SUM(Q25:Q30) -> 9747709.108 | R31: 9769190.756
B32: Pro-active failures Material Costs | C32: AMI 1Ph 1e | D32: 1575984.964 | E32: 2135940.56 | F32: 2640255.748 | G32: 3029146.686 | H32: 3238982.055 | I32: 3232470.943 | J32: 2986232.541 | K32: 2523055.74 | L32: 2313812.29 | M32: 2519800.184 | N32: 2774029.495 | O32: 2977353.753 | P32: 3120006.288 | Q32: 3195771.95 | R32: 3202874.981
C33: AMI 1Ph 1e + c | D33: 180458.9256 | E33: 244250.6441 | F33: 302243.1154 | G33: 346590.2994 | H33: 370469.5523 | I33: 369787.288 | J33: 341814.4488 | K33: 288597.8281 | L33: 264718.5752 | M33: 288256.6959 | N33: 317252.9316 | O33: 340791.0523 | P33: 356824.265 | Q33: 365693.7018 | R33: 366375.9661
C34: AMI 1Ph 2e + C | D34: 727874.6545 | E34: 986415.7318 | F34: 1219335.621 | G34: 1399072.136 | H34: 1496122.09 | I34: 1493016.491 | J34: 1379273.945 | K34: 1165375.847 | L34: 1068714.093 | M34: 1163823.048 | N34: 1281059.392 | O34: 1375391.947 | P34: 1440997.716 | Q34: 1475935.699 | R34: 1479429.498
C35: AMI 3Ph | D35: 622444.9525 | E35: 843415.1841 | F35: 1042561.195 | G35: 1196240.08 | H35: 1278990.249 | I35: 1276716.893 | J35: 1179417.244 | K35: 996184.7268 | L35: 913889.2291 | M35: 995275.3843 | N35: 1095303.061 | O35: 1175779.874 | P35: 1232159.11 | Q35: 1262167.413 | R35: 1264895.44
C36: AMI 3Ph + C | D36: 98143.20009 | E36: 132922.1011 | F36: 164366.039 | G36: 188663.6274 | H36: 202003.4798 | I36: 201527.0565 | J36: 186281.5109 | K36: 157219.6895 | L36: 144356.2603 | M36: 157219.6895 | N36: 172941.6584 | O36: 185805.0876 | P36: 194380.707 | Q36: 199144.94 | R36: 199621.3633
C37: AMI 3Ph CT | D37: 42353.26729 | E37: 57084.83852 | F37: 70588.77882 | G37: 81023.64177 | H37: 86547.98098 | I37: 86547.98098 | J37: 79796.01084 | K37: 67519.70148 | L37: 61995.36227 | M37: 67519.70148 | N37: 74271.67163 | O37: 79182.19537 | P37: 83478.90364 | Q37: 85320.35005 | R37: 85320.35005
D38: =SUM(D32:D37) -> 3247259.964 | E38: =SUM(E32:E37) -> 4400029.06 | F38: 5439350.498 | G38: 6240736.471 | H38: 6673115.407 | I38: 6660066.653 | J38: 6152815.701 | K38: 5197953.532 | L38: 4767485.81 | M38: 5191894.703 | N38: 5714858.21 | O38: 6134303.909 | P38: 6427846.99 | Q38: 6584034.055 | R38: 6598517.599
B45: Capital costs
D47: 2026-27 | E47: 2027-28 | F47: 2028-29 | G47: 2029-30 | H47: 2030-31 | I47: 2031-32 | J47: 2032-33 | K47: 2033-34 | L47: 2034-35 | M47: 2035-36 | N47: 2036-37 | O47: 2037-38 | P47: 2038-39 | Q47: 2039-40 | R47: 2040-41
D48: =D38+D31+D21+D14 -> 40857766.76 | E48: 46699958.41 | F48: 49277977.16 | G48: 51265750.8 | H48: 52338237.81 | I48: 52305789.64 | J48: 51047602.88 | K48: 41223458.97 | L48: 22263319.96 | M48: 12878366.14 | N48: 14175720.26 | O48: 15216192.56 | P48: 15944267.18 | Q48: 16331743.16 | R48: 16367708.36
B50: Total NPV | D50: =NPV(Summary!$B$15,D48:R48) -> 402402034.4
B52: NPV Breakdown
B56: Proactive - Labour | D56: =D14 -> 10179449.64 | E56: =E14 -> 11105151.06 | F56: 11105151.06 | G56: 11105151.06 | H56: 11105151.06 | I56: 11105151.06 | J56: 11105151.06 | K56: 8791358.036 | L56: 3239083.39 | M56: 0 | N56: 0 | O56: 0 | P56: 0 | Q56: 0 | R56: 0
B57: Proactive - Materials | D57: =D21 -> 22623570.8 | E57: =E21 -> 24680446.15 | F57: 24680446.15 | G57: 24680446.15 | H57: 24680446.15 | I57: 24680446.15 | J57: 24680446.15 | K57: 19538578.63 | L57: 7198605.468 | M57: 0 | N57: 0 | O57: 0 | P57: 0 | Q57: 0 | R57: 0
B58: Proactive failures - Labour | D58: =D31*(1-'Labour costs'!$I$14) -> 3978704.476 | E58: =E31*(1-'Labour costs'!$I$14) -> 5391300.274 | F58: =F31*(1-'Labour costs'!$I$14) -> 6664735.375 | G58: =G31*(1-'Labour costs'!$I$14) -> 7646596.908 | H58: =H31*(1-'Labour costs'!$I$14) -> 8176354.187 | I58: =I31*(1-'Labour costs'!$I$14) -> 8160299.114 | J58: =J31*(1-'Labour costs'!$I$14) -> 7538820.141 | K58: =K31*(1-'Labour costs'!$I$14) -> 6368898.776 | L58: =L31*(1-'Labour costs'!$I$14) -> 5841363.291 | M58: =M31*(1-'Labour costs'!$I$14) -> 6361369.764 | N58: =N31*(1-'Labour costs'!$I$14) -> 7002260.069 | O58: =O31*(1-'Labour costs'!$I$14) -> 7516225.408 | P58: =P31*(1-'Labour costs'!$I$14) -> 7875846.309 | Q58: =Q31*(1-'Labour costs'!$I$14) -> 8067262.399 | R58: =R31*(1-'Labour costs'!$I$14) -> 8085040.74
B59: Proactive failures - Materials | D59: =D38*(1-'Labour costs'!$D$14) -> 2922533.967 | E59: =E38*(1-'Labour costs'!$D$14) -> 3960026.154 | F59: =F38*(1-'Labour costs'!$D$14) -> 4895415.448 | G59: =G38*(1-'Labour costs'!$D$14) -> 5616662.824 | H59: =H38*(1-'Labour costs'!$D$14) -> 6005803.866 | I59: =I38*(1-'Labour costs'!$D$14) -> 5994059.988 | J59: =J38*(1-'Labour costs'!$D$14) -> 5537534.131 | K59: =K38*(1-'Labour costs'!$D$14) -> 4678158.179 | L59: =L38*(1-'Labour costs'!$D$14) -> 4290737.229 | M59: =M38*(1-'Labour costs'!$D$14) -> 4672705.232 | N59: =N38*(1-'Labour costs'!$D$14) -> 5143372.389 | O59: =O38*(1-'Labour costs'!$D$14) -> 5520873.518 | P59: =P38*(1-'Labour costs'!$D$14) -> 5785062.291 | Q59: =Q38*(1-'Labour costs'!$D$14) -> 5925630.649 | R59: =R38*(1-'Labour costs'!$D$14) -> 5938665.839
B60: Proactive faults - Labour | D60: =D31-D58 -> 828781.8733 | E60: =E31-E58 -> 1123031.873 | F60: 1388294.08 | G60: 1592820.213 | H60: 1703171.015 | I60: 1699826.671 | J60: 1570369.832 | K60: 1326669.998 | L60: 1216782.005 | M60: 1325101.671 | N60: 1458601.978 | O60: 1565663.248 | P60: 1640573.885 | Q60: 1680446.709 | R60: 1684150.017
B61: Proactive Faults - Materials | D61: =D38-D59 -> 324725.9964 | E61: =E38-E59 -> 440002.906 | F61: 543935.0498 | G61: 624073.6471 | H61: 667311.5407 | I61: 666006.6653 | J61: 615281.5701 | K61: 519795.3532 | L61: 476748.581 | M61: 519189.4703 | N61: 571485.821 | O61: 613430.3909 | P61: 642784.699 | Q61: 658403.4055 | R61: 659851.7599
B64: Proactive - Labour | D64: =NPV(Summary!$B$15,D56:R56) -> 75608712.98
B65: Proactive - Materials | D65: =NPV(Summary!$B$15,D57:R57) -> 168035920.7
B66: Proactive failures - Labour | D66: =NPV(Summary!$B$15,D58:R58) -> 78419947.03
B67: Proactive failures - Materials | D67: =NPV(Summary!$B$15,D59:R59) -> 57602006.29
B68: Proactive faults - Labour | D68: =NPV(Summary!$B$15,D60:R60) -> 16335224.44
B69: Proactive Faults - Materials | D69: =NPV(Summary!$B$15,D61:R61) -> 6400222.922
B70: Total | D70: =SUM(D64:D69) -> 402402034.4

Sheet Option 1
B2: Option 1 - Reactive
B4: Expenditure / benefits profile
D6: 1 | E6: 2 | F6: 3 | G6: 4 | H6: 5 | I6: 6 | J6: 7 | K6: 8 | L6: 9 | M6: 10 | N6: 11 | O6: 12 | P6: 13 | Q6: 14 | R6: 15
D7: 2026-27 | E7: 2027-28 | F7: 2028-29 | G7: 2029-30 | H7: 2030-31 | I7: 2031-32 | J7: 2032-33 | K7: 2033-34 | L7: 2034-35 | M7: 2035-36 | N7: 2036-37 | O7: 2037-38 | P7: 2038-39 | Q7: 2039-40 | R7: 2040-41
B8: Labour Costs | C8: AMI 1Ph 1e | D8: 2951338.573 | E8: 4618650.019 | F8: 6581933.91 | G8: 8747958.927 | H8: 11000309.24 | I8: 13204810.67 | J8: 15220876.32 | K8: 16912852.13 | L8: 18166295.44 | M8: 18896854.1 | N8: 19062598.67 | O8: 18669448.6 | P8: 17768212.5 | Q8: 16452121.69 | R8: 14832165.84
C9: AMI 1Ph 1e + c | D9: 293012.7215 | E9: 458264.0038 | F9: 653112.5307 | G9: 868185.8414 | H9: 1092138.325 | I9: 1310664.648 | J9: 1510939.336 | K9: 1678657.056 | L9: 1803458.77 | M9: 1875972.02 | N9: 1892250.504 | O9: 1853280.799 | P9: 1763502.49 | Q9: 1633274.614 | R9: 1472462.918
C10: AMI 1Ph 2e + C | D10: 1039356.573 | E10: 1626368.59 | F10: 2317464.252 | G10: 3080579.875 | H10: 3873786.03 | I10: 4649727.125 | J10: 5359567.708 | K10: 5955458.899 | L10: 6396951.131 | M10: 6653953.872 | N10: 6712655.074 | O10: 6574041.311 | P10: 6256857.507 | Q10: 5793167.342 | R10: 5222927.096
C11: AMI 3Ph | D11: 926444.8844 | E11: 1449904.315 | F11: 2066128.708 | G11: 2746204.31 | H11: 3452784.186 | I11: 4144907.184 | J11: 4777997.935 | K11: 5309288.174 | L11: 5702635.709 | M11: 5931536.266 | N11: 5983942.446 | O11: 5860456.619 | P11: 5577342.773 | Q11: 5164117.031 | R11: 4655716.848
C12: AMI 3Ph + C | D12: 139749.8135 | E12: 218660.2686 | F12: 311425.231 | G12: 413828.1116 | H12: 519845.2115 | I12: 624055.2017 | J12: 719832.0136 | K12: 799947.2084 | L12: 858979.4572 | M12: 893314.5407 | N12: 901145.3492 | O12: 882471.8828 | P12: 840305.9908 | Q12: 777659.5226 | R12: 701158.5471
C13: AMI 3Ph CT | D13: 51484.41856 | E13: 80235.45749 | F13: 115004.1557 | G13: 152447.3692 | H13: 191896.4692 | I13: 230008.3115 | J13: 265445.6385 | K13: 294865.3063 | L13: 316930.0571 | M13: 329634.0045 | N13: 332308.5198 | O13: 325622.2317 | P13: 310243.769 | Q13: 286841.7605 | R13: 258759.3504
C14: Percentage failure | D14: 0.011 | E14: 0.017 | F14: 0.024 | G14: 0.032 | H14: 0.04 | I14: 0.048 | J14: 0.055 | K14: 0.061 | L14: 0.066 | M14: 0.068 | N14: 0.069 | O14: 0.067 | P14: 0.064 | Q14: 0.059 | R14: 0.054
C15: Efficiency | D15: =VLOOKUP(D14,'Labour costs'!$B$82:$D$202,3,FALSE) -> 1 | E15: =VLOOKUP(E14,'Labour costs'!$B$82:$D$202,3,FALSE) -> 1 | F15: =VLOOKUP(F14,'Labour costs'!$B$82:$D$202,3,FALSE) -> 0.991638423 | G15: =VLOOKUP(G14,'Labour costs'!$B$82:$D$202,3,FALSE) -> 0.9749152691 | H15: =VLOOKUP(H14,'Labour costs'!$B$82:$D$202,3,FALSE) -> 0.9581921151 | I15: =VLOOKUP(I14,'Labour costs'!$B$82:$D$202,3,FALSE) -> 0.9414689611 | J15: =VLOOKUP(J14,'Labour costs'!$B$82:$D$202,3,FALSE) -> 0.9268362014 | K15: =VLOOKUP(K14,'Labour costs'!$B$82:$D$202,3,FALSE) -> 0.914293836 | L15: =VLOOKUP(L14,'Labour costs'!$B$82:$D$202,3,FALSE) -> 0.9038418647 | M15: =VLOOKUP(M14,'Labour costs'!$B$82:$D$202,3,FALSE) -> 0.8996610762 | N15: =VLOOKUP(N14,'Labour costs'!$B$82:$D$202,3,FALSE) -> 0.897570682 | O15: =VLOOKUP(O14,'Labour costs'!$B$82:$D$202,3,FALSE) -> 0.9017514705 | P15: =VLOOKUP(P14,'Labour costs'!$B$82:$D$202,3,FALSE) -> 0.9080226532 | Q15: =VLOOKUP(Q14,'Labour costs'!$B$82:$D$202,3,FALSE) -> 0.9184746244 | R15: =VLOOKUP(R14,'Labour costs'!$B$82:$D$202,3,FALSE) -> 0.9289265957
D16: =SUM(D8:D13)*D15 -> 5401386.984 | E16: =SUM(E8:E13)*E15 -> 8452082.654 | F16: 11944353.02 | G16: 15607617.85 | H16: 19289134.99 | I16: 22749818.99 | J16: 25816706.29 | K16: 28298371.4 | L16: 30048449.27 | M16: 31111417.91 | N16: 31311663.99 | O16: 30808628.85 | P16: 29525686.85 | Q16: 27652682.65 | R16: 25214031.64
B17: Material Costs | C17: AMI 1Ph 1e | D17: 1809682.837 | E17: 2832034.164 | F17: 4035867.975 | G17: 5364017.288 | H17: 6745098.992 | I17: 8096841.027 | J17: 9333039.215 | K17: 10370514.08 | L17: 11139092.4 | M17: 11587051.67 | N17: 11688681.86 | O17: 11447612.62 | P17: 10894998.46 | Q17: 10088006.35 | R17: 9094692.219
C18: AMI 1Ph 1e + c | D18: 243965.6634 | E18: 381555.7261 | F18: 543788.7851 | G18: 722861.225 | H18: 909326.5637 | I18: 1091274.02 | J18: 1258024.961 | K18: 1397668.607 | L18: 1501579.908 | M18: 1561955.249 | N18: 1575508.897 | O18: 1543062.285 | P18: 1468311.863 | Q18: 1359882.679 | R18: 1225989.066
C19: AMI 1Ph 2e + C | D19: 916178.9362 | E19: 1433622.189 | F19: 2042813.784 | G19: 2715490.013 | H19: 3414690.644 | I19: 4098672.355 | J19: 4724387.348 | K19: 5249657.474 | L19: 5638826.979 | M19: 5865371.462 | N19: 5917115.787 | O19: 5794929.608 | P19: 5515336.32 | Q19: 5106599.633 | R19: 4603940.473
C20: AMI 3Ph | D20: 739575.6802 | E20: 1157450.366 | F20: 1649378.793 | G20: 2192279.276 | H20: 2756337.971 | I20: 3308855.823 | J20: 3814248.566 | K20: 4238374.542 | L20: 4552381.641 | M20: 4735111.653 | N20: 4776947.209 | O20: 4678369.176 | P20: 4452361.003 | Q20: 4122485.245 | R20: 3716632.271
C21: AMI 3Ph + C | D21: 117482.528 | E21: 183819.6451 | F21: 261803.737 | G21: 347890.0722 | H21: 437014.7486 | I21: 524620.2544 | J21: 605136.2973 | K21: 672486.1948 | L21: 722112.4351 | M21: 750976.6769 | N21: 757559.7496 | O21: 741861.6531 | P21: 706414.3387 | Q21: 653749.7571 | R21: 589438.2009
C22: AMI 3Ph CT | D22: 50290.73064 | E22: 78375.16463 | F22: 112337.736 | G22: 148912.8128 | H22: 187447.2687 | I22: 224675.4719 | J22: 259291.1697 | K22: 288028.73 | L22: 309581.9003 | M22: 321991.3014 | N22: 324603.8069 | O22: 318072.5431 | P22: 303050.6366 | Q22: 280191.2136 | R22: 252759.9059
D23: =SUM(D17:D22) -> 3877176.376 | E23: =SUM(E17:E22) -> 6066857.255 | F23: 8645990.81 | G23: 11491450.69 | H23: 14449916.19 | I23: 17344938.95 | J23: =SUM(J17:J22) -> 19994127.56 | K23: 22216729.63 | L23: 23863575.27 | M23: 24822458.01 | N23: 25040417.31 | O23: 24523907.89 | P23: 23340472.62 | Q23: 21610914.88 | R23: 19483452.14
B25: EDPR total | C25: =SUM(D16:H16)+SUM(D23:H23) -> 105225966.8
B26: 10 year total | C26: =SUM(D16:M16)+SUM(D23:M23) -> 351492560.1
B29: Capital costs
D32: 2026-27 | E32: 2027-28 | F32: 2028-29 | G32: 2029-30 | H32: 2030-31 | I32: 2031-32 | J32: 2032-33 | K32: 2033-34 | L32: 2034-35 | M32: 2035-36 | N32: 2036-37 | O32: 2037-38 | P32: 2038-39 | Q32: 2039-40 | R32: 2040-41
D33: =D23+D16 -> 9278563.359 | E33: 14518939.91 | F33: 20590343.83 | G33: 27099068.53 | H33: =H23+H16 -> 33739051.17 | I33: 40094757.94 | J33: 45810833.85 | K33: 50515101.03 | L33: 53912024.53 | M33: 55933875.92 | N33: 56352081.29 | O33: 55332536.74 | P33: 52866159.48 | Q33: 49263597.52 | R33: 44697483.77
B35: Total NPV | D35: =NPV(Summary!$B$15,'Option 1'!D33:R33) -> 440118204.3
B38: NPV Breakdown
B41: Reactive failures - Labour | D41: =D16-D43 -> 4470220.196 | E41: 6994994.191 | F41: 9885218.045 | G41: 12916957.94 | H41: 15963803.56 | I41: 18827886.35 | J41: 21366060.64 | K41: 23419901.54 | L41: 24868276.46 | M41: 25747995.67 | N41: 25913720.52 | O41: 25497405.63 | P41: 24435635.15 | Q41: 22885525.66 | R41: 20867283.49
B42: Reactive failures - Materials | D42: =D23-D44 -> 3489458.738 | E42: 5460171.529 | F42: 7781391.729 | G42: 10342305.62 | H42: 13004924.57 | I42: 15610445.06 | J42: 17994714.8 | K42: 19995056.67 | L42: 21477217.74 | M42: 22340212.21 | N42: 22536375.58 | O42: 22071517.1 | P42: 21006425.36 | Q42: 19449823.39 | R42: 17535106.92
B43: Reactive faults - Labour | D43: =D16*'Labour costs'!$I$14 -> 931166.7881 | E43: =OFFSET(E16, 0, 0, 1, 1)*'Labour costs'!$I$14 -> 1457088.463 | F43: =OFFSET(F16, 0, 0, 1, 1)*'Labour costs'!$I$14 -> 2059134.972 | G43: =OFFSET(G16, 0, 0, 1, 1)*'Labour costs'!$I$14 -> 2690659.904 | H43: =OFFSET(H16, 0, 0, 1, 1)*'Labour costs'!$I$14 -> 3325331.424 | I43: =OFFSET(I16, 0, 0, 1, 1)*'Labour costs'!$I$14 -> 3921932.634 | J43: =OFFSET(J16, 0, 0, 1, 1)*'Labour costs'!$I$14 -> 4450645.649 | K43: =OFFSET(K16, 0, 0, 1, 1)*'Labour costs'!$I$14 -> 4878469.861 | L43: =OFFSET(L16, 0, 0, 1, 1)*'Labour costs'!$I$14 -> 5180172.811 | M43: =OFFSET(M16, 0, 0, 1, 1)*'Labour costs'!$I$14 -> 5363422.242 | N43: =OFFSET(N16, 0, 0, 1, 1)*'Labour costs'!$I$14 -> 5397943.468 | O43: =OFFSET(O16, 0, 0, 1, 1)*'Labour costs'!$I$14 -> 5311223.221 | P43: =OFFSET(P16, 0, 0, 1, 1)*'Labour costs'!$I$14 -> 5090051.699 | Q43: =OFFSET(Q16, 0, 0, 1, 1)*'Labour costs'!$I$14 -> 4767156.984 | R43: =OFFSET(R16, 0, 0, 1, 1)*'Labour costs'!$I$14 -> 4346748.146
B44: Reactive Faults - Materials | D44: =D23*'Labour costs'!$D$14 -> 387717.6376 | E44: =E23*'Labour costs'!$D$14 -> 606685.7255 | F44: =F23*'Labour costs'!$D$14 -> 864599.081 | G44: =G23*'Labour costs'!$D$14 -> 1149145.069 | H44: =H23*'Labour costs'!$D$14 -> 1444991.619 | I44: =I23*'Labour costs'!$D$14 -> 1734493.895 | J44: =J23*'Labour costs'!$D$14 -> 1999412.756 | K44: =K23*'Labour costs'!$D$14 -> 2221672.963 | L44: =L23*'Labour costs'!$D$14 -> 2386357.527 | M44: =M23*'Labour costs'!$D$14 -> 2482245.801 | N44: =N23*'Labour costs'!$D$14 -> 2504041.731 | O44: =O23*'Labour costs'!$D$14 -> 2452390.789 | P44: =P23*'Labour costs'!$D$14 -> 2334047.262 | Q44: =Q23*'Labour costs'!$D$14 -> 2161091.488 | R44: =R23*'Labour costs'!$D$14 -> 1948345.214
B46: Reactive failures - Labour | D46: =NPV(Summary!$B$15,D41:R41) -> 205228465.1
B47: Reactive failures - Materials | D47: =NPV(Summary!$B$15,D42:R42) -> 172925761.8
B48: Reactive faults - Labour | D48: =NPV(Summary!$B$15,D43:R43) -> 42750003.88
B49: Reactive Faults - Materials | D49: =NPV(Summary!$B$15,D44:R44) -> 19213973.53
B50: Total | D50: =SUM(D46:D49) -> 440118204.3

Sheet Unit rate buildup
B2: Information in this sheet has been deleted because it contains confidential pricing information

Sheet Labour costs
B2: Labour cost estimation
B4: Labour rates | C4: 2024 | D4: 2026-06-01 | H4: Escallation factor to $2026
B5: Specialist metering (Office hours) | C5: 175.9082617 | D5: =$H$5*C5 -> 199.024052 | H5: =1.025*1.025*1.025*1.025*1.025 -> 1.131408213
B6: Specialist metering (After hours) | C6: 234.0990758 | D6: =C6*$H$5 -> 264.8616169
B7: Faults (Linesman) rate | C7: 197.8693641 | D7: =C7*$H$5 -> 223.8710237
B9: Electrician contracted rate | C9: 126.74 | D9: =C9*$H$5 -> 143.3946769
B10: Project manager | C10: 159.28 | D10: =C10*$H$5 -> 180.2107001
B13: Assumptions | H13: Blended rates
B14: Percentage of failed meters will result in faults truck (i.e. hot water / heating complaints) | D14: 0.1 | H14: =D14*(2*D7) -> 44.77420473 | I14: =H14/H19 -> 0.1723940149
B15: Percentage of meters that have an antenna connected | D15: 0.05
B16: Percentage time increase for 3 phase tasks | D16: 0.8
B17: Percentage of jobs that require 2 person crews | D17: 0.15 | H17: =D17*(2*D5) -> 59.7072156
B18: Percentage refusals and double visits | D18: 0.03 | H18: =D18*(2*D5) -> 11.94144312
H19: =((1-(D14+D17+D18))*D5)+SUM(H14:H18) -> 259.7201809
B22: Replace on fail | H22: Proactive replacement
B23: Meter replaced on remote fail, or events. Combination of fault trucks for hot water and overtime when faults get peaky. | H23: Meter replaced proactively, no triage and minimal travel time.
B25: On site time - Single phase | H25: On site time - Single phase
B26: Activity | C26: Description | D26: Time MOG (hour) | E26: Time (minutes) | H26: Activity | I26: Description | J26: Time (hours) | K26: Time (minutes)
B27: Site arrival | C27: Arrive at site. Find appropriate parking. | D27: 0.1 | E27: =D27*60 -> 6 | H27: Site arrival | I27: Not significant in the context of a proactive replacement | J27: 0.05 | K27: =J27*60 -> 3
B28: Customer Contact | C28: Let the customer know that we are there to replace the meter, Locate meter. | D28: 0.1 | E28: 6 | H28: Customer Contact | I28: Let the customer know that we are there to replace the meter, Locate meter. | J28: 0.1 | K28: =J28*60 -> 6
B29: Complete JSEA | C29: Job safety assessment must be carried out to ensure the site is safe to carry out work. | D29: 0.1 | E29: 6 | H29: Complete JSEA | I29: Job safety assessment must be carried out to ensure the site is safe to carry out work. | J29: 0.1 | K29: =J29*60 -> 6
B30: Triage issue | C30: Is the meter working. If yes, why is it reported as faulty. | D30: 0.2 | E30: 12
B31: Final meter read | C31: Read the information out of the meter if it is not read remotely before removing | D31: 0.1 | E31: 6
B32: Disconnect Supply | C32: Disconnect supply from the site. Confirm that supply is isolated and safety VESI test. | D32: 0.1 | E32: 6 | H32: Disconnect Supply | I32: Disconnect supply from the site. Confirm that supply is isolated. | J32: 0.1 | K32: =J32*60 -> 6
B33: Replace meter | C33: Remove cover, disconnect terminals, reconnect terminals with new meter. Replace terminal cover. | D33: 0.15 | E33: 9 | H33: Replace meter | I33: Remove cover, disconnect terminals, reconnect terminals with new meter. Replace terminal cover. | J33: 0.15 | K33: 9
B34: Antenna change | C34: Some sites have antennas that need to be changed over | D34: =$D$15*0.2 -> 0.01 | E34: =D34*60 -> 0.6 | H34: Antenna change | I34: Some sites have antennas that need to be changed over | J34: =$D$15*0.2 -> 0.01 | K34: 0.6
B35: Reconnect supply | C35: Reconnect supply to site. Confirm that supply has returned to site. | D35: 0.1 | E35: =D35*60 -> 6 | H35: Reconnect supply | I35: Reconnect supply to site. Confirm that supply has returned to site. | J35: 0.1 | K35: 6
B36: Complete NST test | C36: Undertake NST test, need to find an indepenent earth etc. | D36: 0.1 | E36: 6 | H36: Complete NST test | I36: Undertake NST test, need to find an indepenent earth etc. | J36: 0.1 | K36: 6
B37: Seal Equipment / complete paperwork | C37: Re-seal the meter. Close out job and pack up. | D37: 0.1 | E37: 6 | H37: Seal Equipment / complete paperwork | I37: Re-seal the meter. Close out job and pack up. | J37: 0.1 | K37: 6
B38: Time at site (hours) | D38: =SUM(D27:D37) -> 1.16 | E38: =SUM(E27:E37) -> 69.6 | H38: Time at site (hours) | J38: =SUM(J27:J37) -> 0.81 | K38: =SUM(K27:K37) -> 48.6
D39: =H19*D38 -> 301.2754098 | H39: Cost | J39: =J38*D9 -> 116.1496883
B41: On site time - Three phase | H41: On site time - Three phase
B42: Activity | C42: Description | D42: Time MOG (hour) | E42: Time MOG (minutes) | H42: Activity | I42: Description | J42: Time (hours) | K42: Time (minutes)
B43: Site arrival | C43: Arrive at site. Find appropriate parking. | D43: =D27 -> 0.1 | E43: =D43*60 -> 6 | H43: Site arrival | I43: Not significant in the context of a proactive replacement | J43: 0.05 | K43: =J43*60 -> 3
B44: Customer Contact | C44: Let the customer know that we are there to replace the meter, Locate meter. | D44: =D28 -> 0.1 | E44: 6 | H44: Customer Contact | I44: Let the customer know that we are there to replace the meter, Locate meter. | J44: =D44 -> 0.1 | K44: =J44*60 -> 6
B45: Complete JSEA | C45: Job safety assessment must be carried out to ensure the site is safe to carry out work. | D45: 0.1 | E45: 6 | H45: Complete JSEA | I45: Job safety assessment must be carried out to ensure the site is safe to carry out work. | J45: =D45 -> 0.1 | K45: =J45*60 -> 6
B46: Triage issue | C46: Is the meter working. If yes, why is it reported as faulty. | D46: 0.3 | E46: 18
B47: Final meter read | C47: Read the information out of the meter if it is not read remotely before removing | D47: =D31 -> 0.1 | E47: 6
B48: Disconnect Supply | C48: Disconnect supply from the site. Confirm that supply is isolated and safety VESI test. | D48: 0.15 | E48: 9 | H48: Disconnect Supply | I48: Disconnect supply from the site. Confirm that supply is isolated. | J48: =D48 -> 0.15 | K48: =J48*60 -> 9
B49: Replace meter | C49: Remove cover, disconnect terminals, reconnect terminals with new meter. Replace terminal cover. | D49: =D33*($D$16+1) -> 0.27 | E49: 16.2 | H49: Replace meter | I49: Remove cover, disconnect terminals, reconnect terminals with new meter. Replace terminal cover. | J49: =D49 -> 0.27 | K49: =J49*60 -> 16.2
B50: Antenna change | C50: Some sites have antennas that need to be changed over | D50: =D34 -> 0.01 | E50: 0.6 | H50: Antenna change | I50: Some sites have antennas that need to be changed over | J50: =J34 -> 0.01 | K50: =K34 -> 0.6
B51: Reconnect supply | C51: Reconnect supply to site. Confirm that supply has returned to site. | D51: 0.15 | E51: 9 | H51: Reconnect supply | I51: Reconnect supply to site. Confirm that supply has returned to site. | J51: =D51 -> 0.15 | K51: =J51*60 -> 9
B52: Complete NST test | C52: Undertake NST test, need to find an indepenent earth etc. | D52: 0.2 | E52: 12 | H52: Complete NST test | I52: Undertake NST test, need to find an indepenent earth etc. | J52: =D52 -> 0.2 | K52: =J52*60 -> 12
B53: Seal Equipment / complete paperwork | C53: Re-seal the meter. Close out job and pack up. | D53: 0.1 | E53: 6 | H53: Seal Equipment / complete paperwork | I53: Re-seal the meter. Close out job and pack up. | J53: =D53 -> 0.1 | K53: =J53*60 -> 6
B54: Time at site (hours) | D54: =SUM(D43:D53) -> 1.58 | E54: =SUM(E43:E53) -> 94.8 | H54: Time at site (hours) | J54: =SUM(J43:J53) -> 1.13 | K54: =SUM(K43:K53) -> 67.8
D55: =D54*H19 -> 410.3578858 | H55: Cost | J55: =J54*D9 -> 162.0359849
B58: Travel time | H58: Travel time
B59: Average travel time per meter | H59: Average travel time per meter
B60: DB | C60: Average cost | D60: Time MOG (hour) | E60: Time MOG (minutes) | H60: DB | I60: Average cost | J60: Time (hours) | K60: Time (minutes)
B61: Powercor | C61: 192.012 | D61: 0.739303351 | E61: 44.35820106 | H61: Powercor | I61: =J61*D9 -> 28.67893538 | J61: =K61/60 -> 0.2 | K61: 12
C64: Powercor
B65: Base rate | C65: =($D$61+$D$38)*D5 -> 378.0070489
B66: Faults rate | C66: =($D$61+$D$38)*D7*2 -> 850.3979708
B69: Replacement efficiency scale
B71: Assumptions | H71: Notes
C72: Urban | D72: Rural | H72: Reduction in travel time is not likely to be significant if the crew needs to go back to a depot. The assumptions: - Travel time reduction is likely to reduce by around 25% in rural areas - Minimal reduction in urban area As the failure rate increases we would move to replace on fail for most meters resulting in the removal to triage
B73: Resulting reduction in travel time | C73: 0.1 | D73: 0.25
B74: Move from triage to replace on fail | C74: =D46/D54 -> 0.1898734177
B75: Percentage rural (Powercor) | C75: 0.3
B76: Percentage of meter >10 years old | C76: 0.8
B78: Resultant efficiency @12% | D78: =((E54*(1-C74))+((1-D73)*E61))/(E54+E61) -> 0.7909605755
B81: Efficiency scale (Failure rate >2%) | D81: Powercor
B82: 0 | D82: 1
B83: =ROUND(B82+0.001,3) -> 0.001 | D83: 1
B84: 0.002 | D84: 1
B85: 0.003 | D85: 1
B86: 0.004 | D86: 1
B87: 0.005 | D87: 1
B88: 0.006 | D88: 1
B89: 0.007 | D89: 1
B90: 0.008 | D90: 1
B91: 0.009 | D91: 1
B92: 0.01 | D92: 1
B93: 0.011 | D93: 1
B94: 0.012 | D94: 1
B95: 0.013 | D95: 1
B96: 0.014 | D96: 1
B97: 0.015 | D97: 1
B98: 0.016 | D98: 1
B99: 0.017 | D99: 1
B100: 0.018 | D100: 1
B101: 0.019 | D101: 1
B102: 0.02 | D102: 1
B103: 0.021 | D103: =1-(((100/10)*(B103-0.02))*(1-$D$78)) -> 0.9979096058
B104: 0.022 | D104: 0.9958192115
B105: 0.023 | D105: 0.9937288173
B106: 0.024 | D106: 0.991638423
B107: 0.025 | D107: 0.9895480288
B108: 0.026 | D108: 0.9874576345
B109: 0.027 | D109: 0.9853672403
B110: 0.028 | D110: 0.983276846
B111: 0.029 | D111: 0.9811864518
B112: 0.03 | D112: 0.9790960575
B113: 0.031 | D113: 0.9770056633
B114: 0.032 | D114: 0.9749152691
B115: =ROUND(B114+0.001,3) -> 0.033 | D115: 0.9728248748
B116: 0.034 | D116: 0.9707344806
B117: 0.035 | D117: 0.9686440863
B118: 0.036 | D118: 0.9665536921
B119: 0.037 | D119: 0.9644632978
B120: 0.038 | D120: 0.9623729036
B121: 0.039 | D121: 0.9602825093
B122: 0.04 | D122: 0.9581921151
B123: 0.041 | D123: 0.9561017209
B124: 0.042 | D124: 0.9540113266
B125: 0.043 | D125: 0.9519209324
B126: 0.044 | D126: 0.9498305381
B127: 0.045 | D127: 0.9477401439
B128: 0.046 | D128: 0.9456497496
B129: 0.047 | D129: 0.9435593554
B130: 0.048 | D130: 0.9414689611
B131: 0.049 | D131: 0.9393785669
B132: 0.05 | D132: 0.9372881726
B133: 0.051 | D133: 0.9351977784
B134: 0.052 | D134: 0.9331073842
B135: 0.053 | D135: =1-(((100/10)*(B135-0.02))*(1-$D$78)) -> 0.9310169899
B136: 0.054 | D136: 0.9289265957
B137: 0.055 | D137: 0.9268362014
B138: 0.056 | D138: 0.9247458072
B139: 0.057 | D139: 0.9226554129
B140: 0.058 | D140: 0.9205650187
B141: 0.059 | D141: 0.9184746244
B142: 0.06 | D142: 0.9163842302
B143: 0.061 | D143: 0.914293836
B144: 0.062 | D144: 0.9122034417
B145: 0.063 | D145: 0.9101130475
B146: 0.064 | D146: 0.9080226532
B147: =ROUND(B146+0.001,3) -> 0.065 | D147: 0.905932259
B148: 0.066 | D148: 0.9038418647
B149: 0.067 | D149: 0.9017514705
B150: 0.068 | D150: 0.8996610762
B151: 0.069 | D151: 0.897570682
B152: 0.07 | D152: 0.8954802877
B153: 0.071 | D153: 0.8933898935
B154: 0.072 | D154: 0.8912994993
B155: 0.073 | D155: 0.889209105
B156: 0.074 | D156: 0.8871187108
B157: 0.075 | D157: 0.8850283165
B158: 0.076 | D158: 0.8829379223
B159: 0.077 | D159: 0.880847528
B160: 0.078 | D160: 0.8787571338
B161: 0.079 | D161: 0.8766667395
B162: 0.08 | D162: 0.8745763453
B163: 0.081 | D163: 0.8724859511
B164: 0.082 | D164: 0.8703955568
B165: 0.083 | D165: 0.8683051626
B166: 0.084 | D166: 0.8662147683
B167: 0.085 | D167: =1-(((100/10)*(B167-0.02))*(1-$D$78)) -> 0.8641243741
B168: 0.086 | D168: 0.8620339798
B169: 0.087 | D169: 0.8599435856
B170: 0.088 | D170: 0.8578531913
B171: 0.089 | D171: 0.8557627971
B172: 0.09 | D172: 0.8536724028
B173: 0.091 | D173: 0.8515820086
B174: 0.092 | D174: 0.8494916144
B175: 0.093 | D175: 0.8474012201
B176: 0.094 | D176: 0.8453108259
B177: 0.095 | D177: 0.8432204316
B178: 0.096 | D178: 0.8411300374
B179: =ROUND(B178+0.001,3) -> 0.097 | D179: 0.8390396431
B180: 0.098 | D180: 0.8369492489
B181: 0.099 | D181: 0.8348588546
B182: 0.1 | D182: 0.8327684604
B183: 0.101 | D183: 0.8306780661
B184: 0.102 | D184: 0.8285876719
B185: 0.103 | D185: 0.8264972777
B186: 0.104 | D186: 0.8244068834
B187: 0.105 | D187: 0.8223164892
B188: 0.106 | D188: 0.8202260949
B189: 0.107 | D189: 0.8181357007
B190: 0.108 | D190: 0.8160453064
B191: 0.109 | D191: 0.8139549122
B192: 0.11 | D192: 0.8118645179
B193: 0.111 | D193: 0.8097741237
B194: 0.112 | D194: 0.8076837295
B195: 0.113 | D195: 0.8055933352
B196: 0.114 | D196: 0.803502941
B197: 0.115 | D197: 0.8014125467
B198: 0.116 | D198: 0.7993221525
B199: 0.117 | D199: 0.7972317582
B200: 0.118 | D200: 0.795141364
B201: 0.119 | D201: 0.7930509697
B202: 0.12 | D202: 0.7909605755

Sheet Replacement program breakdown
B2: Program level costs
B4: Assumptions
B5: Working days per year | C5: 251
B6: Project duration (days) | C6: =C5*5 -> 1255
B7: Labour rate - Project management (daily) | C7: 900
B8: Labour rate - SME metering (daily) | C8: 1200
B11: Project element (Activity | C11: Category | D11: Scope | E11: Time FTE | F11: Duration | G11: Cost | H11: Notes | J11: 2026-27 | K11: 2027-28 | L11: 2028-29 | M11: 2029-30 | N11: 2030-31
J12: 0.2 | K12: 0.4 | L12: 0.6 | M12: 0.8 | N12: 1
B13: 1.0 ProgramManagement | C13: High level category
B14: 1.1 Industry Planning & Liaison | C14: Program management | D14: Partially in scope | E14: 0.2 | F14: 1 | G14: =F14*E14*$C$7*$C$6 -> 225900 | H14: There will be a some industry communications etc | J14: =IF($F14>=$J$12,1,$F14*5)*$C$5*$C$7*$E14 -> 45180 | K14: =IF($F14>=K$12,1,IF((($F14-K$12)>=0),($F14-K$12)*5,0))*$C$5*$C$7*$E14 -> 45180 | L14: =IF($F14>=L$12,1,IF((($F14-L$12)>=0),($F14-L$12)*5,0))*$C$5*$C$7*$E14 -> 45180 | M14: =IF($F14>=M$12,1,IF((($F14-M$12)>=0),($F14-M$12)*5,0))*$C$5*$C$7*$E14 -> 45180 | N14: =IF($F14>=N$12,1,IF((($F14-N$12)>=0),($F14-N$12)*5,0))*$C$5*$C$7*$E14 -> 45180
B15: 1.2 PMO: ProgramEstablishment | C15: Program management | D15: In scope | E15: 2 | F15: 0.2 | G15: =F15*E15*$C$7*$C$6 -> 451800 | H15: Establish the PMO in the first year | J15: 451800 | K15: =IF($F15>=K$12,1,IF((($F15-K$12)>=0),($F15-K$12)*5,0))*$C$5*$C$7*$E15 -> 0 | L15: 0 | M15: 0 | N15: 0
B16: 1.3 PMO: ProgramOperation Mode | C16: Program management | D16: In scope | E16: 1 | F16: 0.8 | G16: =F16*E16*$C$7*$C$6 -> 903600 | J16: 225900 | K16: 225900 | L16: 225900 | M16: 225900 | N16: 0
B17: 1.4 PMO: ProgramClose-Down | C17: Program management | D17: Out of scope | H17: Will not close down until next EDPR | J17: 0 | K17: 0 | L17: 0 | M17: 0 | N17: 0
B18: 1.5 ProgramManagement Tools | C18: Program management | D18: In scope | E18: 0 | F18: 0.2 | G18: =F18*E18*$C$7*$C$6 -> 0 | H18: Should already have tools, no cost | J18: 0 | K18: 0 | L18: 0 | M18: 0 | N18: 0
B19: 1.6 Commercial & Procurement | C19: Procurement | D19: In scope | E19: 0.5 | F19: 0.2 | G19: =F19*E19*$C$7*$C$6 -> 112950 | H19: Only in the first year | J19: 112950 | K19: 0 | L19: 0 | M19: 0 | N19: 0
B20: 1.7 Management of the AMI Program | C20: Program management | D20: In scope | E20: 1 | F20: 1 | G20: =F20*E20*$C$7*$C$6 -> 1129500 | H20: PMO manager | J20: 225900 | K20: 225900 | L20: 225900 | M20: 225900 | N20: 225900
B21: 1.8 AMI ProgramFinance Reporting | C21: Program management | D21: In scope | E21: 0.3 | F21: 1 | G21: =F21*E21*$C$7*$C$6 -> 338850 | J21: 67770 | K21: 67770 | L21: 67770 | M21: 67770 | N21: 67770
B22: 1.9 AMI Collaboration Sites (Sharepoint) | C22: Program management | D22: Out of scope | J22: 0 | K22: 0 | L22: 0 | M22: 0 | N22: 0
B23: 1.10 Reporting Metering ProcessPerformance | C23: Program management | D23: In scope | E23: 0 | F23: 1 | G23: =F23*E23*$C$7*$C$6 -> 0 | H23: Should already have tools | J23: 0 | K23: 0 | L23: 0 | M23: 0 | N23: 0
B24: 1.11 AMI Field Deployment Reporting | C24: Program management | D24: In scope | E24: 0.1 | F24: 1 | G24: =F24*E24*$C$7*$C$6 -> 112950 | J24: 22590 | K24: 22590 | L24: 22590 | M24: 22590 | N24: 22590
B25: 1.12 Meter SupplyContract Review | C25: Procurement | D25: In scope | E25: 0 | F25: 1 | G25: =F25*E25*$C$7*$C$6 -> 0 | H25: Covered above | J25: 0 | K25: 0 | L25: 0 | M25: 0 | N25: 0
B26: 1.13 Gateway Review | C26: Out of scope | D26: Out of scope | J26: 0 | K26: 0 | L26: 0 | M26: 0 | N26: 0
B27: 1.14 HAN Pilot | C27: Out of scope | D27: Out of scope | H27: Possibly if we move to WiFi etc | J27: 0 | K27: 0 | L27: 0 | M27: 0 | N27: 0
B28: 1.15 Remote Configuration of Meters | C28: AMI operations | D28: In scope | E28: 0.1 | F28: 1 | G28: 112950 | J28: 22590 | K28: 22590 | L28: 22590 | M28: 22590 | N28: 22590
B29: 1.16 Implement Reporting | C29: Program management | D29: In scope | E29: 0.1 | F29: 1 | G29: 112950 | J29: 22590 | K29: 22590 | L29: 22590 | M29: 22590 | N29: 22590
B30: 1.18 CIS to UIQ Automation for BAU Process | C30: Out of scope | D30: Out of scope | H30: Already done | J30: 0 | K30: 0 | L30: 0 | M30: 0 | N30: 0
J31: 0 | K31: 0 | L31: 0 | M31: 0 | N31: 0
B32: 2.0 Technology | J32: 0 | K32: 0 | L32: 0 | M32: 0 | N32: 0
B33: 2.1 RFP | C33: Procurement | D33: In scope | E33: 0.5 | F33: 0.2 | G33: =F33*E33*$C$7*$C$6 -> 112950 | H33: If we are doing a mass rollout there will need to be best pricing etc | J33: 112950 | K33: 0 | L33: 0 | M33: 0 | N33: 0
B34: 2.2 DPI Trials | C34: AMI technology | D34: Partially in scope | E34: 1 | F34: 0.1 | G34: =F34*E34*$C$7*$C$6 -> 112950 | H34: Half a year of testing | J34: 112950 | K34: 0 | L34: 0 | M34: 0 | N34: 0
B35: 2.3 Establish Backhaul | C35: Out of scope | D35: Out of scope | H35: Possibly augmentation not rollout | J35: 0 | K35: 0 | L35: 0 | M35: 0 | N35: 0
B36: 2.4 Technology Acceptance | C36: AMI technology | D36: In scope | E36: 2 | F36: 1 | G36: =F36*E36*$C$8*$C$6 -> 3012000 | H36: Needed for the DI meters | J36: 451800 | K36: 451800 | L36: 451800 | M36: 451800 | N36: 451800
B37: 2.5 Pilot & Roll-out Preparation | D37: In scope | E37: 1 | F37: 0.2 | G37: 225900 | J37: 225900 | K37: 0 | L37: 0 | M37: 0 | N37: 0
B38: 2.6 Establish Test Lab | D38: In scope | G38: 200000 | H38: DI Test lab for new meters and issues | J38: =G38 -> 200000 | K38: 0 | L38: 0 | M38: 0 | N38: 0
B39: 2.7 Establish Asset Mgmt System | D39: Partially in scope | E39: 0 | F39: 1 | G39: 300000 | H39: Would be good to update asset management systems | J39: =IF($F39>=$J$12,1,$F39*5)*$C$5*$C$7*$E39 -> 0 | K39: 0 | L39: 0 | M39: 0 | N39: 0
B40: 2.8 Establish Security Systems | C40: Out of scope | D40: Out of scope | J40: 0 | K40: 0 | L40: 0 | M40: 0 | N40: 0
B41: 2.9 NMS Implementation | C41: Out of scope | D41: Out of scope | J41: 0 | K41: =IF($F41>=K$12,1,IF((($F41-K$12)>=0),($F41-K$12)*5,0))*$C$5*$C$7*$E41 -> 0 | L41: 0 | M41: 0 | N41: 0
B42: 2.11 Establish ACC | C42: Out of scope | D42: Out of scope | J42: 0 | K42: 0 | L42: 0 | M42: 0 | N42: 0
B43: 2.12 AMI Meter Solutions | C43: Out of scope | D43: Out of scope | J43: 0 | K43: 0 | L43: 0 | M43: 0 | N43: 0
B44: 2.13 NMS Integration | C44: Out of scope | D44: Out of scope | J44: 0 | K44: 0 | L44: 0 | M44: 0 | N44: 0
B45: 2.14 DCI Sentry | C45: Out of scope | D45: Out of scope | J45: 0 | K45: 0 | L45: 0 | M45: 0 | N45: 0
B46: 2.15 Develop HomeArea Network (HAN) Capability | C46: Out of scope | D46: Out of scope | J46: 0 | K46: 0 | L46: 0 | M46: 0 | N46: 0
B47: 2.19 BAU & Support (Pre-deploy) | C47: Out of scope | D47: Out of scope | J47: 0 | K47: 0 | L47: 0 | M47: 0 | N47: 0
B48: 2.20 AMI Generation 2 Scoping | C48: Out of scope | D48: Out of scope | J48: 0 | K48: 0 | L48: 0 | M48: 0 | N48: 0
B49: 2.21 UIQ Upgrade | D49: In scope | H49: Captured separately | J49: 0 | K49: 0 | L49: 0 | M49: 0 | N49: 0
B50: 2.31 AMI Operate Centre Setup | C50: Out of scope | D50: Out of scope | J50: 0 | K50: 0 | L50: 0 | M50: 0 | N50: 0
B51: 2.32 TAG Automation | C51: AMI technology | D51: Out of scope | J51: 0 | K51: 0 | L51: 0 | M51: 0 | N51: 0
B52: 2.33 Information Security Management System (ISMS) | D52: Out of scope | J52: 0 | K52: 0 | L52: 0 | M52: 0 | N52: 0
J53: 0 | K53: 0 | L53: 0 | M53: 0 | N53: 0
B54: 3.0 Business Transformation | J54: 0 | K54: 0 | L54: 0 | M54: 0 | N54: 0
B55: 3.1 Transformation Strategy | C55: Out of scope | D55: Out of scope | J55: 0 | K55: 0 | L55: 0 | M55: 0 | N55: 0
B56: 3.2 OpportunityDevelopment | C56: Out of scope | D56: Out of scope | J56: 0 | K56: 0 | L56: 0 | M56: 0 | N56: 0
B57: 3.3 Scope & Structure | C57: Out of scope | D57: Out of scope | J57: 0 | K57: 0 | L57: 0 | M57: 0 | N57: 0
B58: 3.4 Process Architecture Management | C58: Out of scope | D58: Out of scope | J58: 0 | K58: 0 | L58: 0 | M58: 0 | N58: 0
B59: 3.5 OrganisationalChange Management | C59: Out of scope | D59: Out of scope | J59: 0 | K59: 0 | L59: 0 | M59: 0 | N59: 0
B60: 3.7 ImplementationManagement | C60: Out of scope | D60: Out of scope | J60: 0 | K60: 0 | L60: 0 | M60: 0 | N60: 0
B61: 3.8 Resource Management | D61: In scope | E61: 0.1 | F61: 1 | G61: =F61*E61*$C$7*$C$6 -> 112950 | J61: 22590 | K61: 22590 | L61: 22590 | M61: 22590 | N61: 22590
B62: 3.9 Performance Management | D62: In scope | E62: 0.1 | F62: 1 | G62: =F62*E62*$C$7*$C$6 -> 112950 | J62: 22590 | K62: 22590 | L62: 22590 | M62: 22590 | N62: 22590
B63: 3.10 Network Impact Assessment | D63: In scope | E63: 0 | F63: 1 | G63: 0 | J63: 0 | K63: 0 | L63: 0 | M63: 0 | N63: 0
B64: 3.11 Continual Improvement | D64: In scope | E64: 0 | F64: 1 | G64: 0 | J64: 0 | K64: 0 | L64: 0 | M64: 0 | N64: 0
B65: 3.12 Scope Assessment – Vic. AMI Program Ph2(Active 2012) | C65: Out of scope | D65: Out of scope | J65: 0 | K65: 0 | L65: 0 | M65: 0 | N65: 0
B66: 3.13 AMI Operating Model Implementation | C66: Out of scope | D66: Out of scope | J66: 0 | K66: 0 | L66: 0 | M66: 0 | N66: 0
B67: 3.14 Transition Planning & Implementation | D67: Partially in scope | E67: 0.1 | F67: 1 | G67: 112950 | J67: 22590 | K67: 22590 | L67: 22590 | M67: 22590 | N67: 22590
J68: 0 | K68: 0 | L68: 0 | M68: 0 | N68: 0
B69: 4.0 Information Technology | J69: 0 | K69: 0 | L69: 0 | M69: 0 | N69: 0
B70: 4.1 IT ProgramManagement | D70: Partially in scope | E70: 0.5 | F70: 1 | G70: =F70*E70*$C$7*$C$6 -> 564750 | J70: 112950 | K70: 112950 | L70: 112950 | M70: 112950 | N70: 112950
B71: 4.2 MCR A and Faults Management Mobility | D71: In scope | G71: 0 | H71: Mobility solutions for field crew - will need to provide ipads etc as well as mobility | J71: =G71 -> 0 | K71: 0 | L71: 0 | M71: 0 | N71: 0
B72: 4.4 Interval Meter Billing (IMB) | C72: Out of scope | D72: Out of scope | J72: =IF($F72>=$J$12,1,$F72*5)*$C$5*$C$7*$E72 -> 0 | K72: 0 | L72: 0 | M72: 0 | N72: 0
B73: 4.5 MMS & Scaling | C73: Out of scope | D73: Out of scope | J73: 0 | K73: 0 | L73: 0 | M73: 0 | N73: 0
B74: 4.6 Systems Integration(USB) Establishment | C74: Out of scope | D74: Out of scope | J74: 0 | K74: 0 | L74: 0 | M74: 0 | N74: 0
B75: 4.7 Infrastructure Development | C75: Out of scope | D75: Out of scope | J75: 0 | K75: 0 | L75: 0 | M75: 0 | N75: 0
B76: 4.8 AMI Reporting | C76: Out of scope | D76: Out of scope | J76: 0 | K76: 0 | L76: 0 | M76: 0 | N76: 0
B77: 4.9 Systems Integration | C77: Out of scope | D77: Out of scope | J77: 0 | K77: 0 | L77: 0 | M77: 0 | N77: 0
B78: 4.10 Type 6 Meter DataTime Reference | C78: Out of scope | D78: Out of scope | J78: 0 | K78: 0 | L78: 0 | M78: 0 | N78: 0
B79: 4.11 Infrastructure Production | C79: Out of scope | D79: Out of scope | J79: 0 | K79: 0 | L79: 0 | M79: 0 | N79: 0
B80: 4.12 Infrastr’ctr Disaster Recovery | C80: Out of scope | D80: Out of scope | J80: 0 | K80: 0 | L80: 0 | M80: 0 | N80: 0
B81: 4.13 Infrastructure Growth 2010 | C81: Out of scope | D81: Out of scope | J81: 0 | K81: 0 | L81: 0 | M81: 0 | N81: 0
B82: 4.14 Oracle Fusion 11g Technical Upgrade | C82: Out of scope | D82: Out of scope | J82: 0 | K82: 0 | L82: 0 | M82: 0 | N82: 0
B83: 4.15 Field Systems Enhancement | C83: Out of scope | D83: Out of scope | J83: 0 | K83: 0 | L83: 0 | M83: 0 | N83: 0
B84: 4.16 AMI Oracle 11G Migration | C84: Out of scope | D84: Out of scope | J84: 0 | K84: 0 | L84: 0 | M84: 0 | N84: 0
B85: 4.17 IEE / MTS Upgrade | C85: Out of scope | D85: Out of scope | H85: Assume we would not need an upgrade as the meter data should not change | J85: 0 | K85: 0 | L85: 0 | M85: 0 | N85: 0
B86: 4.18 Infrastructure Growth 2011 Implementation | C86: Out of scope | D86: Out of scope | J86: 0 | K86: 0 | L86: 0 | M86: 0 | N86: 0
B87: 4.19 Infrastructure Growth 2012 | C87: Out of scope | D87: Out of scope | J87: 0 | K87: 0 | L87: 0 | M87: 0 | N87: 0
B88: 4.20 NMS Hardware Entity Name Upgrade to 1.2M meters WBS # | C88: Out of scope | D88: Out of scope | J88: 0 | K88: 0 | L88: 0 | M88: 0 | N88: 0
B89: 4.26 Data Warehouse/Analytics Tool | C89: Out of scope | D89: Out of scope | J89: 0 | K89: 0 | L89: 0 | M89: 0 | N89: 0
B90: 4.27 MobilityConnections | C90: In scope | D90: In scope | J90: 0 | K90: 0 | L90: 0 | M90: 0 | N90: 0
B91: 4.31 AMI IT Security | C91: Out of scope | D91: Out of scope | J91: 0 | K91: 0 | L91: 0 | M91: 0 | N91: 0
B92: 4.35 IEE License Growth | C92: Out of scope | D92: Out of scope | J92: 0 | K92: 0 | L92: 0 | M92: 0 | N92: 0
B93: 4.37 Service Suite Upgrade | C93: Out of scope | D93: Out of scope | J93: 0 | K93: 0 | L93: 0 | M93: 0 | N93: 0
B94: 4.38 Rollout Decomm Project | C94: Out of scope | D94: Out of scope | J94: 0 | K94: 0 | L94: 0 | M94: 0 | N94: 0
B95: 4.39 Infrastructure Growth 2013 | C95: Out of scope | D95: Out of scope | J95: 0 | K95: 0 | L95: 0 | M95: 0 | N95: 0
B96: 4.40 Infrastructure Growth 2014 | C96: Out of scope | D96: Out of scope | J96: 0 | K96: 0 | L96: 0 | M96: 0 | N96: 0
B97: 4.41 Infrastructure Growth 2015 | C97: Out of scope | D97: Out of scope | J97: 0 | K97: 0 | L97: 0 | M97: 0 | N97: 0
B98: 4.42 Infrastructure Growth 2016 | C98: Out of scope | D98: Out of scope | J98: 0 | K98: 0 | L98: 0 | M98: 0 | N98: 0
B99: 4.44 IDAM Technical Upgrade | C99: Out of scope | D99: Out of scope | J99: 0 | K99: 0 | L99: 0 | M99: 0 | N99: 0
B100: 4.45 Faults MobilityRefinements | C100: Out of scope | D100: Out of scope | J100: 0 | K100: 0 | L100: 0 | M100: 0 | N100: 0
J101: 0 | K101: 0 | L101: 0 | M101: 0 | N101: 0
B102: 5.0 Field Implementation | J102: 0 | K102: 0 | L102: 0 | M102: 0 | N102: 0
B103: 5.1 Field Implementation Project Scoping | D103: In scope | E103: 1 | F103: 0.2 | G103: =F103*E103*$C$7*$C$6 -> 225900 | J103: 225900 | K103: 0 | L103: 0 | M103: 0 | N103: 0
B104: 5.2 DeploymentPlanning | D104: In scope | E104: 0.5 | F104: 1 | G104: =F104*E104*$C$7*$C$6 -> 564750 | J104: =IF($F104>=$J$12,1,$F104*5)*$C$5*$C$7*$E104 -> 112950 | K104: 112950 | L104: 112950 | M104: 112950 | N104: =IF($F104>=N$12,1,IF((($F104-N$12)>=0),($F104-N$12)*5,0))*$C$5*$C$7*$E104 -> 112950
B105: 5.3 EnablingTechnology | D105: In scope | E105: 0.1 | F105: 1 | G105: 112950 | J105: 22590 | K105: 22590 | L105: 22590 | M105: 22590 | N105: 22590
B106: 5.4 Resource Mobilisation | D106: In scope | E106: 1 | F106: 1 | G106: 1129500 | J106: 225900 | K106: 225900 | L106: 225900 | M106: 225900 | N106: 225900
B107: 5.5 OrganisationalChange Management | D107: In scope | E107: 0 | F107: 1 | G107: 0 | J107: 0 | K107: 0 | L107: 0 | M107: 0 | N107: 0
B108: 5.6 QualityManagement | D108: In scope | E108: 2 | F108: 1 | G108: 2259000 | H108: Auditing | J108: 451800 | K108: 451800 | L108: 451800 | M108: 451800 | N108: 451800
B109: 5.7 Management & Planning | D109: In scope | E109: 0 | F109: 1 | G109: 0 | J109: 0 | K109: 0 | L109: 0 | M109: 0 | N109: 0
B110: 5.8 Meter Installation Contract Review | D110: In scope | E110: 0 | F110: 1 | G110: 0 | J110: 0 | K110: 0 | L110: 0 | M110: 0 | N110: 0
J111: 0 | K111: 0 | L111: 0 | M111: 0 | N111: 0
B112: 7.0 Regulation | J112: 0 | K112: 0 | L112: 0 | M112: 0 | N112: 0
B113: 7.1 Tariff Optimisation | C113: Out of scope | D113: Out of scope | H113: Should not need any changes in tariffs etc. | J113: 0 | K113: 0 | L113: 0 | M113: 0 | N113: 0
B114: 7.2 Price Review Process | C114: Out of scope | D114: Out of scope | J114: 0 | K114: 0 | L114: 0 | M114: 0 | N114: 0
B115: 7.3 Accruals | C115: Out of scope | D115: Out of scope | J115: 0 | K115: 0 | L115: 0 | M115: 0 | N115: 0
B116: 7.4 Tariff Revenue | C116: Out of scope | D116: Out of scope | J116: 0 | K116: 0 | L116: 0 | M116: 0 | N116: 0
B117: 7.5 Price Review 2016-2020 | C117: Out of scope | D117: Out of scope | J117: 0 | K117: 0 | L117: 0 | M117: 0 | N117: 0
B118: 7.6 Transitional Feed In Tariff (TFIT) | C118: Out of scope | D118: Out of scope | J118: 0 | K118: 0 | L118: 0 | M118: 0 | N118: 0
B119: 7.7 Monthly Billing | C119: Out of scope | D119: Out of scope | J119: 0 | K119: 0 | L119: 0 | M119: 0 | N119: 0
B120: 7.8 Flexible Pricing | C120: Out of scope | D120: Out of scope | J120: 0 | K120: 0 | L120: 0 | M120: 0 | N120: 0
J121: 0 | K121: 0 | L121: 0 | M121: 0 | N121: 0
B122: 8.0 Customer Management | J122: 0 | K122: 0 | L122: 0 | M122: 0 | N122: 0
B123: 8.1 AMI Customer Strategy & RetailerManagement | D123: Partially in scope | E123: 0.3 | F123: 1 | G123: =F123*E123*$C$7*$C$6 -> 338850 | J123: 67770 | K123: 67770 | L123: 67770 | M123: 67770 | N123: 67770
B124: 8.2 Customer Interaction & Treatment Pre-deployment | C124: Out of scope | D124: Out of scope | J124: 0 | K124: 0 | L124: 0 | M124: 0 | N124: 0
B125: 8.3 Customer Self-Service | C125: Out of scope | D125: Out of scope | J125: 0 | K125: 0 | L125: 0 | M125: 0 | N125: 0
B126: 8.4 Customer Response Plan to support the AMI rollout Pre-deployment | C126: Out of scope | D126: Out of scope | J126: 0 | K126: 0 | L126: 0 | M126: 0 | N126: 0
B127: 8.5 Revenue Management Pre-deployment | C127: Out of scope | D127: Out of scope | J127: 0 | K127: 0 | L127: 0 | M127: 0 | N127: 0
B128: 8.6 Customer Energy Data Access (CEDA) Trial | C128: Out of scope | D128: Out of scope | J128: 0 | K128: 0 | L128: 0 | M128: 0 | N128: 0
B129: 8.7 Meter Event Analysis for Revenue Protection | C129: Out of scope | D129: Out of scope | J129: 0 | K129: 0 | L129: 0 | M129: 0 | N129: 0
B130: 8.8 Network Analysis for Revenue Protection | C130: Out of scope | D130: Out of scope | J130: 0 | K130: 0 | L130: 0 | M130: 0 | N130: 0
B131: 8.10 CEDA Implementation | C131: Out of scope | D131: Out of scope | J131: 0 | K131: 0 | L131: 0 | M131: 0 | N131: 0
B132: 8.12 Customer & Community Engagement & Education | D132: Partially in scope | E132: 0.3 | F132: 1 | G132: =F132*E132*$C$7*$C$6 -> 338850 | H132: No doubt a rollout will cause more complaints | J132: 67770 | K132: 67770 | L132: 67770 | M132: 67770 | N132: 67770
B133: 8.13 TCE to reference UIQ | C133: Out of scope | D133: Out of scope | J133: 0 | K133: 0 | L133: 0 | M133: 0 | N133: 0
B134: 8.14 Customer Portal Refinements | C134: Out of scope | D134: Out of scope | J134: 0 | K134: 0 | L134: 0 | M134: 0 | N134: 0
J135: 0 | K135: 0 | L135: 0 | M135: 0 | N135: 0
B136: 10.0 Meter Strategy | J136: =IF($F136>=$J$12,1,$F136*5)*$C$5*$C$7*$E136 -> 0 | K136: 0 | L136: 0 | M136: 0 | N136: 0
B137: 10.1 Meter Strategies | D137: Partially in scope | E137: 0 | F137: 1 | G137: =F137*E137*$C$7*$C$6 -> 0 | J137: 0 | K137: 0 | L137: 0 | M137: 0 | N137: 0
B138: 10.2 Meter Provisioning Policy & Stds -Release 1 / 1A | C138: Out of scope | D138: Out of scope | J138: 0 | K138: 0 | L138: 0 | M138: 0 | N138: 0
B139: 10.3 Meter Provision Policy & Stds -Release 2 & 3 | C139: Out of scope | D139: Out of scope | J139: 0 | K139: 0 | L139: 0 | M139: 0 | N139: 0
B140: 10.4 GIS | C140: Out of scope | D140: Out of scope | J140: 0 | K140: 0 | L140: 0 | M140: 0 | N140: 0
B141: 10.5 Asset Management | D141: Partially in scope | E141: 1 | F141: 1 | G141: =F141*E141*$C$7*$C$6 -> 1129500 | J141: 225900 | K141: 225900 | L141: 225900 | M141: 225900 | N141: 225900
B142: 10.6 BAU Transition | C142: Out of scope | D142: Out of scope | J142: 0 | K142: 0 | L142: 0 | M142: 0 | N142: 0
B143: 10.7 BAU & Support (Technical) | C143: Out of scope | D143: Out of scope | J143: 0 | K143: 0 | L143: 0 | M143: 0 | N143: 0
J144: 0 | K144: 0 | L144: 0 | M144: 0 | N144: 0
J145: 0 | K145: 0 | L145: 0 | M145: 0 | N145: 0
B146: 11.0 Meter Data Management | J146: 0 | K146: 0 | L146: 0 | M146: 0 | N146: 0
B147: 11.1 AMI Address Cleansing | J147: 0 | K147: 0 | L147: 0 | M147: 0 | N147: 0
B148: 11.2 AMI Control of Customer Keys & Access Devices | J148: 0 | K148: 0 | L148: 0 | M148: 0 | N148: 0
B149: 11.4 GIS Information Mgmt & Program Report | D149: Partially in scope | E149: 0.5 | F149: 1 | G149: =F149*E149*$C$7*$C$6 -> 564750 | J149: 112950 | K149: 112950 | L149: 112950 | M149: 112950 | N149: 112950
B150: 11.5 CSG Information Mgmt & Program Reporting | D150: Partially in scope | E150: 0.5 | F150: 1 | G150: 564750 | J150: 112950 | K150: 112950 | L150: 112950 | M150: 112950 | N150: 112950
B151: 11.6 AMI Meter Data Provider Accreditation | C151: Out of scope | D151: Out of scope | J151: 0 | K151: 0 | L151: 0 | M151: 0 | N151: 0
B152: 11.7 AMI Meter Data Transition | C152: Out of scope | D152: Out of scope | J152: 0 | K152: 0 | L152: 0 | M152: 0 | N152: 0
B153: 11.9 Type 5 to Market | C153: Out of scope | D153: Out of scope | J153: 0 | K153: 0 | L153: 0 | M153: 0 | N153: 0
B154: 11.10 AMI Remote Connect and Disconnect | C154: Out of scope | D154: Out of scope | J154: 0 | K154: 0 | L154: 0 | M154: 0 | N154: 0
B155: 11.11 AMI Tariff Implementation (inc. Re-assignment) Build Capability | C155: Out of scope | D155: Out of scope | J155: 0 | K155: 0 | L155: 0 | M155: 0 | N155: 0
J156: 0 | K156: 0 | L156: 0 | M156: 0 | N156: 0
B157: 12.0 AMI Deployment | J157: 0 | K157: 0 | L157: 0 | M157: 0 | N157: 0
B158: 12.1 Program DeploymentPlanning & Management | D158: In scope | E158: 2 | F158: 1 | G158: =F158*E158*$C$7*$C$6 -> 2259000 | J158: 451800 | K158: 451800 | L158: 451800 | M158: 451800 | N158: 451800
B159: 12.2 TechnologyManagement | D159: Partially in scope | E159: 0.5 | F159: 1 | G159: 564750 | J159: 112950 | K159: 112950 | L159: 112950 | M159: 112950 | N159: 112950
B160: 12.3 Field Management & Training | D160: In scope | E160: 1 | F160: 1 | G160: 1129500 | J160: 225900 | K160: 225900 | L160: 225900 | M160: 225900 | N160: 225900
B161: 12.4 Customer Interaction & Treatment Deployment | D161: In scope | E161: 0.1 | F161: 1 | G161: 112950 | J161: 22590 | K161: 22590 | L161: 22590 | M161: 22590 | N161: 22590
B162: 12.5 Data Management | C162: Out of scope | D162: Out of scope | J162: 0 | K162: 0 | L162: 0 | M162: 0 | N162: 0
B163: 12.6 BAU Metering | C163: Out of scope | D163: Out of scope | J163: 0 | K163: 0 | L163: 0 | M163: 0 | N163: 0
B164: 12.7 Customer Response Plan to Support AMI Rollout Deployment | D164: In scope | E164: 1 | F164: 1 | G164: =F164*E164*$C$7*$C$6 -> 1129500 | J164: 225900 | K164: 225900 | L164: 225900 | M164: 225900 | N164: 225900
B165: 12.8 Revenue Management Deployment | C165: Out of scope | D165: Out of scope | J165: 0 | K165: 0 | L165: 0 | M165: 0 | N165: 0
B166: 12.11 – 12.20 Region 1 to Region 10 Region | D166: In scope | E166: 0 | F166: 1 | G166: =F166*E166*$C$7*$C$6 -> 0 | J166: 0 | K166: 0 | L166: 0 | M166: 0 | N166: 0
B167: 12.21 AMI Meters in WIP 2011 | C167: Out of scope | D167: Out of scope | J167: 0 | K167: 0 | L167: 0 | M167: 0 | N167: 0
B168: 12.22 AMI Meters in WIP 2012 | C168: Out of scope | D168: Out of scope | J168: =IF($F168>=$J$12,1,$F168*5)*$C$5*$C$7*$E168 -> 0 | K168: =IF($F168>=K$12,1,IF((($F168-K$12)>=0),($F168-K$12)*5,0))*$C$5*$C$7*$E168 -> 0 | L168: 0 | M168: 0 | N168: 0
B169: 12.23 AMI Meters in Work In Progress 2013 | C169: Out of scope | D169: Out of scope | J169: 0 | K169: 0 | L169: 0 | M169: 0 | N169: 0
J170: 0 | K170: 0 | L170: 0 | M170: 0 | N170: 0
B171: 13.0 Operate | J171: 0 | K171: 0 | L171: 0 | M171: 0 | N171: 0
B172: 13.1 Meter Strategy & Provider | D172: In scope | E172: 0 | F172: 1 | G172: =F172*E172*$C$7*$C$6 -> 0 | J172: 0 | K172: 0 | L172: 0 | M172: 0 | N172: 0
B173: 13.2 AMI Technology | D173: In scope | E173: 1 | F173: 1 | G173: 1129500 | J173: 225900 | K173: 225900 | L173: 225900 | M173: 225900 | N173: 225900
B174: 13.3 IT | D174: Out of scope | J174: 0 | K174: 0 | L174: 0 | M174: 0 | N174: 0
B175: 13.4 Data Management BAU | D175: Out of scope | J175: 0 | K175: 0 | L175: 0 | M175: 0 | N175: 0
B176: 13.5 AMI Enhancements | D176: In scope | E176: 0 | F176: 1 | G176: =F176*E176*$C$7*$C$6 -> 0 | J176: 0 | K176: 0 | L176: 0 | M176: 0 | N176: 0
B177: 13.6 AMI Communications Control | D177: In scope | E177: 1 | F177: 1 | G177: 1129500 | J177: 225900 | K177: 225900 | L177: 225900 | M177: 225900 | N177: 225900
B178: 13.7 TechnologyAssurance | D178: In scope | E178: 1 | F178: 1 | G178: 1129500 | J178: 225900 | K178: 225900 | L178: 225900 | M178: 225900 | N178: 225900
B179: 13.8 HAN Support | C179: Out of scope | D179: Out of scope | J179: 0 | K179: 0 | L179: 0 | M179: 0 | N179: 0
B180: 13.9 OperationsManagement & Support | D180: In scope | E180: 0.5 | F180: 1 | G180: =F180*E180*$C$7*$C$6 -> 564750 | J180: 112950 | K180: 112950 | L180: 112950 | M180: 112950 | N180: 112950
B181: 13.10 Data Management Operations | D181: In scope | E181: 1 | F181: 1 | G181: 1129500 | J181: 225900 | K181: 225900 | L181: 225900 | M181: 225900 | N181: 225900
B182: 13.11 AMI Corporate | C182: Out of scope | D182: Out of scope
B183: 13.12 Price Review 2016 -2026 | C183: Out of scope | D183: Out of scope
B185: 14.0 Non-recoverable project (CAPEX)
B186: 14.1 Generation 2 Communications | C186: Out of scope | D186: Out of scope
B187: 14.2 Customer Initiated Meter Replacement (Solar) | C187: Out of scope | D187: Out of scope
B188: 14.3 Customer Initiated Meter Replacement (Other) | C188: Out of scope | D188: Out of scope
B189: 14.4 New Connections Installations | C189: Out of scope | D189: Out of scope
B190: 14.5 Servicing (NewConnections & Replacements) | C190: Out of scope | D190: Out of scope
B192: 15.0 Non-recoverable project (OPEX)
B193: 15.2 PV Installations | C193: Out of scope | D193: Out of scope
B194: 15.3 Meter Maintenance (ACS) | C194: Out of scope | D194: Out of scope
B195: 15.4 Meter Maintenance (Abolishment) | C195: Out of scope | D195: Out of scope
B196: 15.5 Special Reading | C196: Out of scope | D196: Out of scope
B197: 15.6 Other Connections (Function Code 800) | C197: Out of scope | D197: Out of scope
B198: 15.1 Victorian Energy Efficiency Target (VEET) | C198: Out of scope | D198: Out of scope
B199: 15.6 Other Connections (Function Code 800) | C199: Out of scope | D199: Out of scope
J200: 2026-27 | K200: 2027-28 | L200: 2028-29 | M200: 2029-30 | N200: 2030-31 | O200: Total
G201: =SUM(G14:G199)*0.5 -> 12938050 | J201: =SUM(J14:J200) -> 6163760 | K201: =SUM(K14:K200) -> 4721310 | L201: 4721310 | M201: 4721310 | N201: 4495410 | O201: =SUM(J201:N201) -> 24823100
I204: $'2024 | J204: 2026-27 | K204: 2027-28 | L204: 2028-29 | M204: 2029-30 | N204: 2030-31 | O204: Total
B205: Powercor | C205: 989079.3679 | D205: =C205/$C$208 -> 0.4805305369 | I205: Powercor | J205: =J$201*$D205 -> 2961874.902 | K205: =K$201*$D205 -> 2268733.629 | L205: 2268733.629 | M205: 2268733.629 | N205: 2160181.781 | O205: =SUM(J205:N205) -> 11928257.57
B206: Citipower | C206: 343734.6321 | D206: =C206/$C$208 -> 0.1669987189 | I206: Citipower | J206: =J$201*$D206 -> 1029340.024 | K206: 788452.7216 | L206: 788452.7216 | M206: 788452.7216 | N206: 750727.711 | O206: =SUM(J206:N206) -> 4145425.899
B207: UE | C207: 725493 | D207: 0.3524707442 | I207: UE | J207: 2172545.074 | K207: 1664123.649 | L207: 1664123.649 | M207: 1664123.649 | N207: 1584500.508 | O207: 8749416.529
C208: =SUM(C205:C207) -> 2058307 | I208: Total | J208: =SUM(J205:J207) -> 6163760 | K208: =SUM(K205:K207) -> 4721310 | L208: 4721310 | M208: 4721310 | N208: 4495410 | O208: 24823100
... 5 more rows
